{"text_format":"1","workbook":"xlsx","n_sheets":2,"sheets":["Птп","Птпз"],"not_rendered":{"charts":0,"images":2,"macros":1,"external_links":47,"defined_names":2545,"comments":0,"pivot_tables":0},"unopened":[],"bounds":{"document_bytes":16777216,"sheet_cells":100000,"rows_first":2000,"rows_last":500,"rows_between":2000,"halvings":0,"cell_chars":16384,"cell_head_chars":4096},"cells_cut":0,"cells_raw":0,"read":"whole","date_system":"1900"}

{"sheet":"Птп","index":0,"n_rows":214,"n_cols":59,"rows_kept":214,"cut":false,"hidden":false,"merged":[[144,16,144,20],[85,16,85,20],[163,16,163,20],[182,16,182,20],[184,47,184,58],[183,47,183,58],[184,15,184,30],[184,31,184,46],[125,16,125,26],[105,16,105,20],[183,15,183,46],[2,8,2,11],[4,2,4,7],[41,16,41,19],[39,10,40,10],[39,11,40,11],[29,11,30,11],[23,11,24,11],[32,11,33,11],[3,2,3,7],[31,2,33,5],[4,8,4,11],[5,2,5,7],[7,2,7,7],[6,2,6,7],[13,7,13,9],[14,3,14,5],[0,2,1,11],[63,16,63,19],[10,3,10,5],[10,7,10,9],[11,3,11,5],[11,7,11,9],[8,2,8,7],[9,2,9,7],[3,8,3,11],[5,8,5,11],[6,8,6,11],[7,8,7,11],[8,8,8,11],[2,2,2,7],[12,2,12,11],[13,3,13,5],[14,7,14,9],[9,8,9,11],[43,40,43,47],[42,32,42,47],[42,16,42,31],[43,16,43,23],[43,24,43,31],[43,32,43,39],[15,2,15,11],[17,2,17,11],[28,2,30,7],[25,2,27,6],[22,2,24,6],[42,10,43,10],[26,11,27,11],[34,2,35,9],[45,3,45,4],[45,5,45,8],[47,2,48,11],[16,2,16,8],[42,11,44,11],[41,2,44,5],[46,2,46,9],[36,2,37,9],[42,7,43,7],[42,8,43,8],[42,9,43,9],[38,2,40,9],[42,6,43,6],[236,12,236,13],[243,12,243,13],[226,12,226,13],[235,12,235,13],[49,2,53,11]]}
[null,null,"Расчет платы за технологическое присоединение газоиспользующего оборудования к сетям газораспределения газораспределительных организаций Челябинской области ",null,null,null,null,null,null,null,null,null,null,"до 5 м3/ч",27774.92,"с НДС"]
[null,null,null,null,null,null,null,null,null,null,null,null,null,"до1 5 м3/ч",57864.41,"без НДС"]
[null,null,"Заявитель",null,null,null,null,null,null,null,null,null,null,null,"Размер платы за технологическое присоединение (Птп) определяется на основании утвержденных размеров стандартизированных тарифных ставок по следующей формуле"]
[null,null,"Наименование ГРО"]
[null,null,"Расстояние от газоиспользующего оборудования до газораспределительной сети, измеряемое по прямой линии (наименьшее расстояние) (км)",null,null,null,null,null,null,null,null,null,null,null,"расстояние от газоиспользующего оборудования до газораспределительной сети с проектным рабочим давлением не более 0,3 МПа, измеряемое по прямой линии (наименьшее расстояние), составляет не более 200 метров"]
[null,null,"Количество подключений",null,null,null,null,null,null,null,null,null,null,null,"ают строительство только газопроводов-вводов (без устройства пунктов редуцирования газа и необходимости выполнения ме"]
[null,null,"Максимальный часовой расход газа, куб.метров в час"]
[null,null,"Давление, Мпа"]
[null,null,"Необходимость строительства пунктов редуцирования газа (да/нет)",null,null,null,null,null,null,null,null,null,null,null,null,null,null,null,null,null,{"$f":"IF(S10=#REF!,\"Выберите категория грунта\",\" \")","v":{"$error":"#REF!"}}]
[null,null,"Ставка на строительство станций катодной защиты"]
[null,null,null,"Тип трубы",null,null,null,"Тип прокладки",null,null,"Диаметр трубы","Длина участка (км)",null,"с1","с2","с3","c4","с5","c6","c7.1","c7.2"]
[null,null,"Строительство участка №1","Стальные газопроводы",null,null,null,"подземная прокладка",null,null,"50 мм и менее",0.5,null,{"$f":"IF(AND(L12>0,D12<>0,H12<>0,K12<>0),VLOOKUP($I$4,P48:T59,2,0),0)","v":{"$error":"#N/A"}},{"$f":"IF(OR(D12=0,H12=0,K12=0,H12=#REF!),0,IF(D12=R31,VLOOKUP($I$4,P67:AB78,IF(AND(H12=R32,K12=Q65),2,IF(AND(H12=R33,K12=Q65),3,IF(AND(H12=R32,K12=S65),4,IF(AND(H12=R33,K12=S65),5,IF(AND(H12=R32,K12=U65),6,IF(AND(H12=R33,K12=U65),7,IF(AND(H2=R32,K12=W65),8,IF(AND(H12=R33,K12=W65),9,IF(AND(H12=R32,K12=Y65),10,IF(AND(H12=R33,K12=Y65),11,IF(AND(H12=R32,K12=AA65),12,IF(AND(H12=R33,K12=AA65),13,0))))))))))))),0))","v":{"$error":"#REF!"}},{"$f":"IF(OR(D12=0,H12=0,K12=0,H12=#REF!),0,IF(D12=Q31,VLOOKUP($I$4,P88:V99,IF(AND(H12=Q32,K12=Q87),2,IF(AND(H12=Q32,K12=R87),3,IF(AND(H12=Q32,K12=S87),4,IF(AND(H12=Q32,K12=T87),5,IF(AND(H12=Q32,K12=U87),6,IF(AND(H12=Q32,K12=V87),7,0))))))),0))","v":{"$error":"#REF!"}},{"$f":"IF(H12=#REF!,VLOOKUP(I4,P110:X121,IF(K12=Q108,2,IF(K12=R108,3,IF(K12=S108,4,IF(K12=T108,5,IF(K12=Y108,6))))),0),0)","v":{"$error":"#REF!"}},{"$f":"IF(I9=Q36,IF(I7=0,0,VLOOKUP(I4,P128:AA139,IF(I7<40,2,IF(AND(99<=I7,I7<=40),3,IF(AND(100<=I7,I7<=399),4,IF(I7<40,2,IF(AND(400<=I7,I7<=999),5,IF(AND(1000<=I7,I7<=1999),6,IF(AND(2000<=I7,I7<=2999),7,IF(AND(3000<=I7,I7<=3999),8,IF(AND(4000<=I7,I7<=4999),9,IF(AND(5000<=I7,I7<=9999),10,IF(AND(10000<=I7,I7<=19999),11,IF(AND(20000<=I7,I7<=29999),12,0)))))))))))))),0)","v":0},{"$f":"IF(I10=Q36,VLOOKUP(I4,P146:Q157,2),0)","v":0},{"$f":"IF(AND(I6>0,D12<>0),VLOOKUP(I4,P165:R176,IF(D12=R31,2,IF(D12=Q31,3)),0),0)","v":0},{"$f":"IF(AND(D12=R31,OR(K12=X13,K12=X14)),VLOOKUP(I4,O188:AC199,2),IF(AND(D12=R31,K12=Y13),VLOOKUP(I4,O188:AC199,3),IF(AND(D12=R31,K12=Z13),VLOOKUP(I4,O188:AC199,4),IF(AND(D12=R31,K12=AA13),VLOOKUP(I4,O188:AC199,5),IF(AND(D12=R31,K12=AB13),VLOOKUP(I4,O188:AC199,6),IF(AND(D12=R31,K12=AC13),VLOOKUP(I4,O188:AC199,7),IF(AND(D12=R31,K12=AD13),VLOOKUP(I4,O188:AC199,8),IF(AND(D12=Q31,K12=X21),VLOOKUP(I4,O188:AC199,10),IF(AND(D12=R31,K12=AE13),VLOOKUP(I4,O188:AC199,9),IF(AND(D12=Q31,K12=Y21),VLOOKUP(I4,O188:AC199,11),IF(AND(D12=Q31,K12=Z21),VLOOKUP(I4,O188:AC199,12),IF(AND(D12=Q31,K12=AA21),VLOOKUP(I4,O188:AC199,13),IF(AND(D12=Q31,K12=AB21),VLOOKUP(I4,O188:AC199,14),IF(AND(D12=Q31,K12=AC21),VLOOKUP(I4,O188:AC199,15),0))))))))))))))","v":{"$error":"#N/A"}},null,null,"до 100 мм","108-158 мм","159-218 мм","219-272 мм","273-324 мм","325-425 мм","426-529 мм","530 мм и выше"]
[null,null,null,null,null,null,null,null,null,null,null,null,null,{"$f":"N12","v":{"$error":"#N/A"}},{"$f":"IFERROR(O12*L12,\"выберите корректные параметры\")","v":"выберите корректные параметры"},{"$f":"IFERROR(P12*L12,\"не правильно заданы параметры\")","v":"не правильно заданы параметры"},{"$f":"IFERROR(Q12*L12,\"не правильно заданы параметры\")","v":"не правильно заданы параметры"},{"$f":"R12*I7","v":0},{"$f":"S12*I7","v":0},{"$f":"T12*V17","v":0},{"$f":"IF(H12=#REF!,\"врезка не может быть осуществлена при бестраншейной прокладке\",U12)","v":{"$error":"#REF!"}},null,"Стальные газопроводы","50 мм и менее","101-158 мм","159 - 218 мм","219 - 272 мм","273 - 324 мм","325 - 425 мм","426 - 529 мм","530 мм и выше"]
[null,null,null,"Тип трубы",null,null,null,"Тип прокладки",null,null,"Диаметр трубы","Длина участка (км)",null,"с1","с2","с3","c4","с5","c6","c7.1","c7.2",null,null,"51-100 мм"]
[null,null,"Строительство участка №2","Полиэтиленовые газопроводы",null,null,null,"подземная прокладка",null,null,"109 мм и менее",null,null,{"$f":"IF(AND(L15>0,D15<>0,H15<>0,K15<>0),VLOOKUP($I$4,P48:T59,2,0),0)","v":0},{"$f":"IF(OR(D15=0,H15=0,K15=0,H15=#REF!),0,IF(D15=R31,VLOOKUP($I$4,P67:AB78,IF(AND(H15=R32,K15=Q65),2,IF(AND(H15=R33,K15=Q65),3,IF(AND(H15=R32,K15=S65),4,IF(AND(H15=R33,K15=S65),5,IF(AND(H15=R32,K15=U65),6,IF(AND(H15=R33,K15=U65),7,IF(AND(H15=R32,K15=W65),8,IF(AND(H15=R33,K15=W65),9,IF(AND(H15=R32,K15=Y65),10,IF(AND(H15=R33,K15=Y65),11,IF(AND(H15=R32,K15=AA65),12,IF(AND(H15=R33,K15=AA65),13,0))))))))))))),0))","v":{"$error":"#REF!"}},{"$f":"IF(OR(D15=0,H15=0,K15=0,H15=#REF!),0,IF(D15=Q31,VLOOKUP($I$4,P88:V99,IF(AND(H15=Q32,K15=Q87),2,IF(AND(H15=Q32,K15=R87),3,IF(AND(H15=Q32,K15=S87),4,IF(AND(H15=Q32,K15=T87),5,IF(AND(H15=Q32,K15=U87),6,IF(AND(H15=Q32,K15=V87),7,0))))))),0))","v":{"$error":"#REF!"}},{"$f":"IF(H15=#REF!,VLOOKUP(I4,P110:X121,IF(K15=Q108,2,IF(K15=R108,3,IF(K15=S108,4,IF(K15=T108,5,IF(K15=Y108,6))))),0),0)","v":{"$error":"#REF!"}},{"$f":"IF(I9=Q36,IF(I7=0,0,VLOOKUP(I4,P128:AA139,IF(I7<40,2,IF(AND(99<=I7,I7<=40),3,IF(AND(100<=I7,I7<=399),4,IF(I7<40,2,IF(AND(400<=I7,I7<=999),5,IF(AND(1000<=I7,I7<=1999),6,IF(AND(2000<=I7,I7<=2999),7,IF(AND(3000<=I7,I7<=3999),8,IF(AND(4000<=I7,I7<=4999),9,IF(AND(5000<=I7,I7<=9999),10,IF(AND(10000<=I7,I7<=19999),11,IF(AND(20000<=I7,I7<=29999),12,0)))))))))))))),0)","v":0},{"$f":"IF(I10=Q36,VLOOKUP(I4,P146:Q157,2),0)","v":0},{"$f":"IF(AND(I6>0,D15<>0),VLOOKUP(I4,P165:R176,IF(D15=R31,2,IF(D15=Q31,3)),0),0)","v":0},{"$f":"IF(AND(D15=R31,OR(K15=X13,K15=X14)),VLOOKUP(I4,O188:AC199,2),IF(AND(D15=R31,K15=Y13),VLOOKUP(I4,O188:AC199,3),IF(AND(D15=R31,K15=Z13),VLOOKUP(I4,O188:AC199,4),IF(AND(D15=R31,K15=AA13),VLOOKUP(I4,O188:AC199,5),IF(AND(D15=R31,K15=AB13),VLOOKUP(I4,O188:AC199,6),IF(AND(D15=R31,K15=AC13),VLOOKUP(I4,O188:AC199,7),IF(AND(D15=R31,K15=AD13),VLOOKUP(I4,O188:AC199,8),IF(AND(D15=Q31,K15=X21),VLOOKUP(I4,O188:AC199,10),IF(AND(D15=R31,K15=AE13),VLOOKUP(I4,O188:AC199,9),IF(AND(D15=Q31,K15=Y21),VLOOKUP(I4,O188:AC199,11),IF(AND(D15=Q31,K15=Z21),VLOOKUP(I4,O188:AC199,12),IF(AND(D15=Q31,K15=AA21),VLOOKUP(I4,O188:AC199,13),IF(AND(D15=Q31,K15=AB21),VLOOKUP(I4,O188:AC199,14),IF(AND(D15=Q31,K15=AC21),VLOOKUP(I4,O188:AC199,15),0))))))))))))))","v":{"$error":"#N/A"}}]
[null,null,{"$f":"IF(OR(K47=N30,K47=N31),\"При данных условиях подключения заявитель относится к льготной категории!!!\",\"\")","v":""},null,null,null,null,null,null,null,null,null,null,{"$f":"N15","v":0},{"$f":"IFERROR(O15*L15,\"не правильно заданы параметры\")","v":"не правильно заданы параметры"},{"$f":"IFERROR(P15*L15,\"не правильно заданы параметры\")","v":"не правильно заданы параметры"},{"$f":"IFERROR(Q15*L15,\"не правильно заданы параметры\")","v":"не правильно заданы параметры"},{"$f":"R15*I7","v":0},{"$f":"S15*I7","v":0},{"$f":"T15*V17","v":0},{"$f":"IF(H15=#REF!,\"врезка не может быть осуществлена при бестраншейной прокладке\",U15)","v":{"$error":"#REF!"}},null,"Полиэтиленовые газопроводы"]
[null,null,{"$f":"IF(C16=\"При данных условиях подключения заявитель относится к льготной категории!!!\",\"Плата за технологическое присоединение (Птп) составит\",\"\")","v":""},null,null,null,null,null,null,{"$f":"IF(C17=\"Плата за технологическое присоединение (Птп) составит\",K47,\"\")","v":""},{"$f":"IF(C17=\"Плата за технологическое присоединение (Птп) составит\",\"руб с учетом НДС\",\"\")","v":""},null,null,"до 100 мм","ДИАМ C1","ДЛИНА С1",null,{"$f":"INDIRECT(IF(AND(D12=R31,OR(H12=R32,H12=R33)),SUBSTITUTE($S$31,\" \",\"_\"),IF(AND(D12=R31,H12=#REF!),SUBSTITUTE($U$31,\" \",\"_\"),IF(AND(D12=Q31,H12=Q32),SUBSTITUTE($T$31,\" \",\"_\"),IF(AND(D12=Q31,H12=#REF!),SUBSTITUTE($V$31,\" \",\"_\"),0)))))","v":{"$error":"#VALUE!"}},null,null,"Z - коэффициент подключений",{"$f":"IF(I6=0,0,IF(AND(1<=I6,I6<=5),V18,IF(AND(6<=I6,I6<=10),V19,IF(AND(11<=I6,I6<=30),V20,IF(AND(31<=I6,I6<=100),V21,IF(I6>100,V22,0))))))","v":0}]
[null,null,null,null,null,null,null,null,null,null,null,null,null,"101 мм и более",{"$f":"IF(OR(K12=S32,K12=S33,K12=U32,K12=U33),100,IF(OR(K12=S34,K12=S35,K12=S36,K12=S37,K12=T32,K12=T33,K12=T34,K12=T35,K12=T36,K12=T37,K12=U34,K12=V33,K12=V32),101,0))","v":100},{"$f":"IF(AND(L12*1000>=1,L12*1000<=100),1,IF(AND(L12*1000>=101,L12*1000<=500),2,IF(AND(L12*1000>=501,L12*1000<=1000),3,IF(AND(L12*1000>=1001,L12*1000<=2000),4,IF(AND(L12*1000>=2001,L12*1000<=3000),5,IF(AND(L12*1000>=3001,L12*1000<=4000),6,IF(AND(L12*1000>=4001,L12*1000<=5000),7,IF(L12*1000>=5001,8,0))))))))","v":2},null,null,null,null,"1 - 5 подключений",1]
[null,null,null,null,null,null,null,null,null,null,null,null,null,"нет",{"$f":"IF(OR(K15=S32,K15=S33,K15=U32,K15=U33),100,IF(OR(K15=S34,K15=S35,K15=S36,K15=S37,K15=T32,K15=T33,K15=T34,K15=T35,K15=T36,K15=T37,K15=U34,K15=V33,K15=V32),101,0))","v":101},{"$f":"IF(AND(L15*1000>=1,L15*1000<=100),1,IF(AND(L15*1000>=101,L15*1000<=500),2,IF(AND(L15*1000>=501,L15*1000<=1000),3,IF(AND(L15*1000>=1001,L15*1000<=2000),4,IF(AND(L15*1000>=2001,L15*1000<=3000),5,IF(AND(L15*1000>=3001,L15*1000<=4000),6,IF(AND(L15*1000>=4001,L15*1000<=5000),7,IF(L15*1000>=5001,8,0))))))))","v":0},null,null,null,null,"6 - 10 подключений",1.5]
[null,null,null,null,null,null,null,null,null,null,null,null,null,"до 100 м",null,null,null,null," ",null,"11 - 30 подключений",3,null,"109 мм и менее","110-159 мм","160-224 мм","225-314 мм","315-399 мм","400 мм и выше"]
[null,null,null,null,null,null,null,null,null,null,null,null,null,"101-500м",1,null,"Полиэтилен_давление",null,"с1",null,"31 - 100 подключений",4,null,"109 мм и менее","110 - 159 мм","160 - 224 мм","225 - 314 мм","315-399 мм","400 мм и выше"]
[null,null,null,null,null,null,null,null,null,null,null,null,null,"501-1000м",2,null,"до 0,005 Мпа",null,"c2",{"$f":"IF(OR(R10=0,S10=0,T10=0),0,IF(R10=R31,VLOOKUP($I$4,P67:V68,IF(AND(S10=R32,T10=Q65),2,IF(AND(S10=R33,T10=Q65),3,0))),0))","v":0},"Свыше 100 подключений",5,null,null,"СТАЛЬ С7.1","ПОЛИЭТИЛЕН С7.1"]
[null,null,"Покрытие расходов ГРО, связанных с проектированием ГРО газопровода i-того диапазона диаметров n-ной протяженности и k-того типа прокладки (С1ink)",null,null,null,null,"Тип прокладки","Протяженность (км)","Наружный диаметр","Размер ставки \n(руб/за одно подключение)","Расходы",null,"1001-2000м",3,{"$f":"INDIRECT(IF(AND(D15=R31,OR(H15=R32,H15=R33)),SUBSTITUTE($S$31,\" \",\"_\"),IF(AND(D15=R31,H15=#REF!),SUBSTITUTE($U$31,\" \",\"_\"),IF(AND(D15=Q31,H15=Q32),SUBSTITUTE($T$31,\" \",\"_\"),IF(AND(D15=Q31,H15=#REF!),SUBSTITUTE($V$31,\" \",\"_\"),0)))))","v":{"$error":"#REF!"}},"от 0,005 МПа до 1,2 МПа"," ","c3",{"$f":"IF(OR(R10=0,S10=0,T10=0),0,IF(R10=Q31,VLOOKUP($I$4,P88:V89,IF(AND(S10=Q32,T10=Q87),2,IF(AND(S10=Q32,T10=R87),3,0)))))","v":0},null,null,null,null,"до 100 мм","109 мм и менее"]
[null,null,null,null,null,null,null,null,null,null,{"$f":"IFERROR(IF(OR(H24=0,J24=0,H24=R34,J24=S38),0,VLOOKUP($I$4,P48:AV62,(IF(AND(H24=R32,J24=Q44,I24=Q45),2,IF(AND(H24=R32,J24=Q44,I24=R45),3,IF(AND(H24=R32,J24=Q44,I24=S45),4,IF(AND(H24=R32,J24=Q44,I24=T45),5,IF(AND(H24=R32,J24=Q44,I24=U45),6,IF(AND(H24=R32,J24=Q44,I24=V45),7,IF(AND(H24=R32,J24=Q44,I24=W45),8,IF(AND(H24=R32,J24=Q44,I24=X45),9,IF(AND(H24=R32,J24=Y44,I24=Q45),10,IF(AND(H24=R32,J24=Y44,I24=R45),11,IF(AND(H24=R32,J24=Y44,I24=S45),12,IF(AND(H24=R32,J24=Y44,I24=T45),13,IF(AND(H24=R32,J24=Y44,I24=U45),14,IF(AND(H24=R32,J24=Y44,I24=V45),15,IF(AND(H24=R32,J24=Y44,I24=W45),16,IF(AND(H24=R32,J24=Y44,I24=X45),17,IF(AND(H24=R33,J24=Q44,I24=Q45),18,IF(AND(H24=R33,J24=Q44,I24=R45),19,IF(AND(H24=R33,J24=Q44,I24=S45),20,IF(AND(H24=R33,J24=Q44,I24=T45),21,IF(AND(H24=R33,J24=Q44,I24=U45),22,IF(AND(H24=R33,J24=Q44,I24=V45),23,IF(AND(H24=R33,J24=Q44,I24=W45),24,IF(AND(H24=R33,J24=Q44,I24=X45),25,IF(AND(H24=R33,J24=Y44,I24=Q45),26,IF(AND(H24=R33,J24=Y44,I24=R45),27,IF(AND(H24=R33,J24=Y44,I24=S45),28,IF(AND(H24=R33,J24=Y44,I24=T45),29,IF(AND(H24=R33,J24=Y44,I24=U45),30,IF(AND(H24=R33,J24=Y44,I24=V45),31,IF(AND(H24=R33,J24=Y44,I24=W45),32,IF(AND(H24=R33,J24=Y44,I24=X45),33))))))))))))))))))))))))))))))))),0)),\"укажите корректные параметры\")","v":0},{"$f":"IFERROR(IF(AND(I24=I25,J24=J25,H24=H25),K24,K24+K25),\"укажите корректные параметры\")","v":0},{"$f":"P50","v":"ООО «Магнитогорскгазстрой»"},"2001-3000м",4,{"$f":"INDIRECT(IF(AND(#REF!=AC42,OR(R27=AC45,R27=AC46)),SUBSTITUTE($S$31,\" \",\"_\"),IF(AND(#REF!=AC42,R27=AC47),SUBSTITUTE($U$31,\" \",\"_\"),IF(AND(#REF!=AB42,R27=AB45),SUBSTITUTE($T$31,\" \",\"_\"),IF(AND(#REF!=AB42,R27=AB46),SUBSTITUTE($V$31,\" \",\"_\"),0)))))","v":{"$error":"#REF!"}},null,null,"c4",{"$f":"IF(AND(OR(R10=0,S10=0,T10=0),S10=#REF!),0,IF(AND(OR(R10=Q31,R10=R31),S10=#REF!),VLOOKUP($I$4,P110:X110,IF(T10=Q108,2,IF(T10=R108,3,0)))))","v":{"$error":"#REF!"}},null,null,null,null,"101-158 мм","110-159 мм"]
[null,null,null,null,null,null,null,null,null,null,{"$f":"IFERROR(IF(OR(H25=0,J25=0,H25=R34,J25=S38),0,VLOOKUP($I$4,P48:AV62,IF(AND(H25=R32,J25=Q44,I25=Q45),2,IF(AND(H25=R32,J25=Q44,I25=R45),3,IF(AND(H25=R32,J25=Q44,I25=S45),4,IF(AND(H25=R32,J25=Q44,I25=T45),5,IF(AND(H25=R32,J25=Q44,I25=U45),6,IF(AND(H25=R32,J25=Q44,I25=V45),7,IF(AND(H25=R32,J25=Q44,I25=W45),8,IF(AND(H25=R32,J25=Q44,I25=X45),9,IF(AND(H25=R32,J25=Y44,I25=Q45),10,IF(AND(H25=R32,J25=Y44,I25=R45),11,IF(AND(H25=R32,J25=Y44,I25=S45),12,IF(AND(H25=R32,J25=Y44,I25=T45),13,IF(AND(H25=R32,J25=Y44,I25=U45),14,IF(AND(H25=R32,J25=Y44,I25=V45),15,IF(AND(H25=R32,J25=Y44,I25=W45),16,IF(AND(H25=R32,J25=Y44,I25=X45),17,IF(AND(H25=R33,J25=Q44,I25=Q45),18,IF(AND(H25=R33,J25=Q44,I25=R45),19,IF(AND(H25=R33,J25=Q44,I25=S45),20,IF(AND(H25=R33,J25=Q44,I25=T45),21,IF(AND(H25=R33,J25=Q44,I25=U45),22,IF(AND(H25=R33,J25=Q44,I25=V45),23,IF(AND(H25=R33,J25=Q44,I25=W45),24,IF(AND(H25=R33,J25=Q44,I25=X45),25,IF(AND(H25=R33,J25=Y44,I25=Q45),26,IF(AND(H25=R33,J25=Y44,I25=R45),27,IF(AND(H25=R33,J25=Y44,I25=S45),28,IF(AND(H25=R33,J25=Y44,I25=T45),29,IF(AND(H25=R33,J25=Y44,I25=U45),30,IF(AND(H25=R33,J25=Y44,I25=V45),31,IF(AND(H25=R33,J25=Y44,I25=W45),32,IF(AND(H25=R33,J25=Y44,I25=X45),33)))))))))))))))))))))))))))))))),0)),\"укажите корректные параметры\")","v":0},null,{"$f":"VLOOKUP(M24,P48:Q62,(IF(AND(H24=R32,J24=Q44,I24=Q45),2,0)),0)","v":{"$error":"#VALUE!"}},"3001-4000м",5,"Сталь_давление",null,null,null,null,null,null,null,null,"159-218 мм","160-224 мм"]
[null,null,"Покрытие расходов ГРО, связанных со строительством стальных газопроводов i-того диапазона диаметров и k-того типа прокладки (С2ik)",null,null,null,null,"Тип прокладки","Протяженность (км)","Наружный диаметр","Размер ставки \n(руб./км)","Расходы",{"$f":"IFERROR(IF(OR(H24=0,J24=0,H24=R34,J24=S38),0,VLOOKUP($I$4,P48:AV62,IF(AND(H24=R32,J24=Q44,I24=Q45),2,IF(AND(H24=R32,J24=Q44,I24=R45),3,IF(AND(H24=R32,J24=Q44,I24=S45),4))),0)),0)","v":0},"4001-5000м",6,"до 0,6 МПа","наземная (надземная) прокладка","Полиэтиленовые газопроводы",null,null,null,null,null,null,"219-272 мм","225-314 мм"]
[null,null,null,null,null,null,null,null,null,null,{"$f":"IFERROR(IF(OR(H27=0,J27=0,H27=R34,J27=S38),0,VLOOKUP($I$4,P67:AB81,IF(AND(H27=R32,J27=Q65),2,IF(AND(H27=R33,J27=Q65),3,IF(AND(H27=R32,J27=S65),4,IF(AND(H27=R33,J27=S65),5,IF(AND(H27=R32,J27=U65),6,IF(AND(H27=R33,J27=U65),7,IF(AND(H27=R32,J27=W65),8,IF(AND(H27=R33,J27=W65),9,IF(AND(H27=R32,J27=Y65),10,IF(AND(H27=R33,J27=Y65),11,IF(AND(H27=R32,J27=AA65),12,IF(AND(H27=R33,J27=AA65),13)))))))))))),0)),\"укажите корректные параметры\")","v":0},{"$f":"IFERROR(I27*K27+K28*I28,\"укажите корректные параметры\")","v":0},null,"5001 и более",7,"от 0,6 МПа до 1,2 МПа","подземная прокладка","Стальные газопроводы",{"$f":"INDIRECT(IF($G$33=$R$26,SUBSTITUTE($Q$21,\" \",\"_\"),IF($G$33=$R$27,SUBSTITUTE($U$31,\" \",\"_\"),0)))","v":{"$error":"#REF!"}},null,null,null,null,null,"273-324 мм","315-399 мм"]
[null,null,null,null,null,null,null,null,null,null,{"$f":"IFERROR(IF(OR(H28=0,J28=0,H28=R34,J28=S38),0,VLOOKUP($I$4,P67:AB81,IF(AND(H28=R32,J28=Q65),2,IF(AND(H28=R33,J28=Q65),3,IF(AND(H28=R32,J28=S65),4,IF(AND(H28=R33,J28=S65),5,IF(AND(H28=R32,J28=U65),6,IF(AND(H28=R33,J28=U65),7,IF(AND(H28=R32,J28=W65),8,IF(AND(H28=R33,J28=W65),9,IF(AND(H28=R32,J28=Y65),10,IF(AND(H28=R33,J28=Y65),11,IF(AND(H28=R32,J28=AA65),12,IF(AND(H28=R33,J28=AA65),13)))))))))))),0)),\"укажите корректные параметры\")","v":0},null,null,"нет",8,null,"подземная прокладка бестраншейным способом","нет",null,null,null,null,null,null,"325-425 мм","400 мм и выше"]
[null,null,"Покрытие расходов ГРО, связанных со строительством полиэтиленового газопровода j-того диапазона диаметров (С3j)",null,null,null,null,null,"Протяженность (км)","Наружный диаметр","Размер ставки \n(руб./км)","Расходы",null,"Физические лица","Юридические лица/индифидуальные предприниматели",null,"нет",null,null,null,null,null,null,null,"426-529 мм"]
[null,null,null,null,null,null,null,null,null,null,{"$f":"IF(OR(J30=0,J30=T38),0,VLOOKUP($I$4,P88:V102,IF(J30=Q87,2,IF(J30=R87,3,IF(J30=S87,4,IF(J30=T87,5,IF(J30=U87,6,IF(J30=V87,7,0)))))),0))","v":0},{"$f":"I30*K30+I31*K31","v":0},null,27774.92,"(НДС не предусмотрен)",null,null,null,null,null,null,null,null,null,"530 мм и выше"]
[null,null,null,null,null,null,null,null,null,null,{"$f":"IF(OR(J31=0,J31=T38),0,VLOOKUP($I$4,P88:V102,IF(J31=Q87,2,IF(J31=R87,3,IF(J31=S87,4,IF(J31=T87,5,IF(J31=U87,6,IF(J31=V87,7,0)))))),0))","v":0},null,null,57864.41,"(НДС не предусмотрен)",null,"Полиэтиленовые газопроводы","Стальные газопроводы","диаметр","диаметр с3","диаметр с4 сталь","диаметр с4 полиэтилен","категория грунта"]
[null,null,"Стандартизированная тарифная ставка на покрытие расходов ГРО, связанных со строительством стальных(полиэтиленовых) газопроводов бестраншейным способом (C4i(j)n)",null,null,null,"Тип трубы","Протяженность (км)","Наружный диаметр","Группа групнтов","Размер ставки \n(руб./км)","Расходы",null,null,null,null,"подземная прокладка","наземная (надземная) прокладка","50 мм и менее","109 мм и менее","50 мм и менее","109 мм и менее","I и II группы"]
[null,null,null,null,null,null,null,null,null,null,{"$f":"IFERROR(IF(OR(G33=R28,I33=V34,I33=U35,G33=0,I33=0),0,VLOOKUP(I4,P110:AE124,IF(AND(G33=R31,I33=Q108,J33=Q109),2,IF(AND(G33=R31,I33=Q108,J33=R109),3,IF(AND(G33=R31,I33=Q108,J33=S109),4,IF(AND(G33=R31,I33=T108,J33=T109),5,IF(AND(G33=R31,I33=T108,J33=U109),6,IF(AND(G33=R31,I33=T108,J33=V109),7,IF(AND(G33=R31,I33=W108,J33=W109),8,IF(AND(G33=R31,I33=W108,J33=X109),9,IF(AND(G33=R31,I33=W108,J33=Y109),10,IF(AND(G33=Z107,I33=Z108,J33=Z109),11,IF(AND(G33=Z107,I33=Z108,J33=AA109),12,IF(AND(G33=Z107,I33=Z108,J33=AB109),13,IF(AND(G33=Z107,I33=AC108,J33=AC109),14,IF(AND(G33=Z107,I33=AC108,J33=AD109),15,IF(AND(G33=Z107,I33=AC108,J33=AE109),16))))))))))))))),0)),\"укажите корректные параметры\")","v":0},{"$f":"IFERROR(H33*K33+H34*K34,\"укажите корректные парамтры\")","v":0},null,null,"С1 Полиэтилен","С1 Сталь","нет","подземная прокладка","51-100 мм","110 - 159 мм","51 – 100 мм","110 - 158 мм","III группы"]
[null,null,null,null,null,null,null,null,null,null,{"$f":"IFERROR(IF(OR(G34=R28,I34=V34,I34=U35,G34=0,I34=0),0,VLOOKUP(I4,P110:AE124,IF(AND(G34=R31,I34=Q108,J34=Q109),2,IF(AND(G34=R31,I34=Q108,J34=R109),3,IF(AND(G34=R31,I34=Q108,J34=S109),4,IF(AND(G34=R31,I34=T108,J34=T109),5,IF(AND(G34=R31,I34=T108,J34=U109),6,IF(AND(G34=R31,I34=T108,J34=V109),7,IF(AND(G34=R31,I34=W108,J34=W109),8,IF(AND(G34=R31,I34=W108,J34=X109),9,IF(AND(G34=R31,I34=W108,J34=Y109),10,IF(AND(G34=Z107,I34=Z108,J34=Z109),11,IF(AND(G34=Z107,I34=Z108,J34=AA109),12,IF(AND(G34=Z107,I34=Z108,J34=AB109),13,IF(AND(G34=Z107,I34=AC108,J34=AC109),14,IF(AND(G34=Z107,I34=AC108,J34=AD109),15,IF(AND(G34=Z107,I34=AC108,J34=AE109),16))))))))))))))),0)),\"укажите корректные параметры\")","v":0},null,null,"участок №1","подземная прокладка","наземная (надземная) прокладка",null,"нет","101-158 мм","160 - 224 мм","101 – 158 мм","нет","IV группы"]
[null,null,"Стандартизированная тарифная ставка на покрытие расходов ГРО, связанных с проектированием и строительством пунктов редуцирования газа (C5m)",null,null,null,null,null,null,null,"Размер ставки \n(руб/м3)","Расходы",null,"участок №2",null,"подземная прокладка",null,null,"159 - 218 мм","225 - 314 мм","нет"]
[null,null,null,null,null,null,null,null,null,null,{"$f":"IF(I9=Q36,IF(I7=0,0,VLOOKUP(I4,P128:AA142,IF(I7<40,2,IF(AND(99<=I7,I7<=40),3,IF(AND(100<=I7,I7<=399),4,IF(I7<40,2,IF(AND(400<=I7,I7<=999),5,IF(AND(1000<=I7,I7<=1999),6,IF(AND(2000<=I7,I7<=2999),7,IF(AND(3000<=I7,I7<=3999),8,IF(AND(4000<=I7,I7<=4999),9,IF(AND(5000<=I7,I7<=9999),10,IF(AND(10000<=I7,I7<=19999),11,IF(AND(20000<=I7,I7<=29999),12,0)))))))))))),0)),0)","v":0},{"$f":"K36*I7","v":0},null,null,null,null,"да",null,"219 - 272 мм","315-399 мм"]
[null,null,"Стандартизированная тарифная ставка на покрытие расходов ГРО, связанных со строительством устройств электрохимической (катодной) защиты от коррозии (C6)",null,null,null,null,null,null,null,"Размер ставки \n(руб/м3)","Расходы",null,null,null,null,"нет",null,"273 - 324 мм","400 мм и выше"]
[null,null,null,null,null,null,null,null,null,null,{"$f":"IF(OR(I10=Q37,I10=0),0,VLOOKUP(I4,P146:Q160,2,0))","v":0},{"$f":"K38*I7","v":0},null,null,null,null,null,null,"нет","нет"]
[null,null,"Стандартизированная тарифная ставка на покрытие расходов ГРО, связанных с мониторингом выполнения Заявителем технических условий (С7.1)",null,null,null,null,null,null,null,"Размер ставки (руб.)","Расходы",null,null,null,null,null,null,null,null,{"$f":"IF(AND(D45=R31,J45=P187),VLOOKUP(I4,O188:AC199,2),IF(AND(D45=R31,J45=#REF!),VLOOKUP(I4,O188:AC199,3),IF(AND(D45=R31,J45=#REF!),VLOOKUP(I4,O188:AC199,4),IF(AND(D45=R31,J45=#REF!),VLOOKUP(I4,O188:AC199,5),IF(AND(D45=R31,J45=#REF!),VLOOKUP(I4,O188:AC199,6),IF(AND(D45=R31,J45=#REF!),VLOOKUP(I4,O188:AC199,7),IF(AND(D45=R31,J45=#REF!),VLOOKUP(I4,O188:AC199,8),IF(AND(D45=R31,J45=#REF!),VLOOKUP(I4,O188:AC199,9),IF(AND(D45=Q31,J45=AV187),VLOOKUP(I4,O188:AC199,10),IF(AND(D45=Q31,J45=BF192),VLOOKUP(I4,O188:AC199,11),IF(AND(D45=Q31,J45=BF190),VLOOKUP(I4,O188:AC199,12),IF(AND(D45=Q31,J45=BG192),VLOOKUP(I4,O188:AC199,13),IF(AND(D45=Q31,J45=#REF!),VLOOKUP(I4,O188:AC199,14),IF(AND(D45=Q31,J45=#REF!),VLOOKUP(I4,O188:AC199,15),\"не верно заданы параметры\"))))))))))))))","v":{"$error":"#REF!"}}]
[null,null,null,null,null,null,null,null,null,null,{"$f":"IFERROR(IF(I6=0,0,IF(I6>0,VLOOKUP(I4,P165:Q179,2,0),\"укажите корретные параметры\")),\"укажите корретные параметры\")","v":0},{"$f":"IFERROR(V17*K40,\"укажите корретные параметры\")","v":0},null,{"$f":"IFERROR(IF(OR(G43=Q37,AND(G43=0,H43=0,I43=0,J43=0)),0,IF(OR(G43=Q37,AND(G43=0,H43=0,I43=0,J43=0)),0,IF(AND(G43=P184,H43=P185,I43=Q22,J43=P187),VLOOKUP(I4,O188:BH199,2),IF(AND(G43=P184,H43=P185,I43=Q22,J43=R187),VLOOKUP(I4,O188:BH199,4),IF(AND(G43=P184,H43=P185,I43=Q22,J43=T187),VLOOKUP(I4,O188:BH199,6),IF(AND(G43=P184,H43=P185,I43=Q22,J43=V187),VLOOKUP(I4,O188:BH199,8),IF(AND(G43=P184,H43=P185,I43=Q22,J43=X187),VLOOKUP(I4,O188:BH199,10),IF(AND(G43=P184,H43=P185,I43=Q22,J43=Z187),VLOOKUP(I4,O188:BH199,12),IF(AND(G43=P184,H43=P185,I43=Q22,J43=AB187),VLOOKUP(I4,O188:BH199,14),IF(AND(G43=P184,H43=P185,I43=Q22,J43=AD187),VLOOKUP(I4,O188:BH199,16),IF(AND(G43=P184,H43=P185,I43=Q23,J43=P187),VLOOKUP(I4,O188:BH199,3),IF(AND(G43=P184,H43=P185,I43=Q23,J43=R187),VLOOKUP(I4,O188:BH199,5),IF(AND(G43=P184,H43=P185,I43=Q23,J43=T187),VLOOKUP(I4,O188:BH199,7),IF(AND(G43=P184,H43=P185,I43=Q23,J43=V187),VLOOKUP(I4,O188:BH199,9),IF(AND(G43=P184,H43=P185,I43=Q23,J43=X187),VLOOKUP(I4,O188:BH199,11),IF(AND(G43=P184,H43=P185,I43=Q23,J43=Z187),VLOOKUP(I4,O188:BH199,13),IF(AND(G43=P184,H43=P185,I43=Q23,J43=AB187),VLOOKUP(I4,O188:BH199,15),IF(AND(G43=P184,H43=P185,I43=Q23,J43=AD187),VLOOKUP(I4,O188:BH199,17),IF(AND(G43=P184,H43=AF185,I43=Q22,J43=P187),VLOOKUP(I4,O188:BH199,18),IF(AND(G43=P184,H43=AF185,I43=Q22,J43=R187),VLOOKUP(I4,O188:BH199,20),IF(AND(G43=P184,H43=AF185,I43=Q22,J43=T187),VLOOKUP(I4,O188:BH199,22),IF(AND(G43=P184,H43=AF185,I43=Q22,J43=V187),VLOOKUP(I4,O188:BH199,24),IF(AND(G43=P184,H43=AF185,I43=Q22,J43=X187),VLOOKUP(I4,O188:BH199,26),IF(AND(G43=P184,H43=AF185,I43=Q22,J43=Z187),VLOOKUP(I4,O188:BH199,28),IF(AND(G43=P184,H43=AF185,I43=Q22,J43=AB187),VLOOKUP(I4,O188:BH199,30),IF(AND(G43=P184,H43=AF185,I43=Q22,J43=AD187),VLOOKUP(I4,O188:BH199,32),IF(AND(G43=P184,H43=AF185,I43=Q23,J43=P187),VLOOKUP(I4,O188:BH199,19),IF(AND(G43=P184,H43=AF185,I43=Q23,J43=R187),VLOOKUP(I4,O188:BH199,21),IF(AND(G43=P184,H43=AF185,I43=Q23,J43=T187),VLOOKUP(I4,O188:BH199,23),IF(AND(G43=P184,H43=AF185,I43=Q23,J43=V187),VLOOKUP(I4,O188:BH199,25),IF(AND(G43=P184,H43=AF185,I43=Q23,J43=X187),VLOOKUP(I4,O188:BH199,27),IF(AND(G43=P184,H43=AF185,I43=Q23,J43=Z187),VLOOKUP(I4,O188:BH199,29),IF(AND(G43=P184,H43=AF185,I43=Q23,J43=AB187),VLOOKUP(I4,O188:BH199,31),IF(AND(G43=P184,H43=AF185,I43=Q23,J43=AD187),VLOOKUP(I4,O188:BH199,33),IF(AND(G43=AV184,H43=AV185,I43=P26,J43=AV187),VLOOKUP(I4,O188:BG199,34),IF(AND(G43=AV184,H43=AV185,I43=P27,J43=AV187),VLOOKUP(I4,O188:BG199,34),IF(AND(G43=AV184,H43=AV185,I43=P26,J43=AX187),VLOOKUP(I4,O188:BG199,35),IF(AND(G43=AV184,H43=AV185,I43=P27,J43=AY187),VLOOKUP(I4,O188:BG199,37),IF(AND(G43=AV184,H43=AV185,I43=P26,J43=AZ187),VLOOKUP(I4,O188:BG199,38),IF(AND(G43=AV184,H43=AV185,I43=P27,J43=BA187),VLOOKUP(I4,O188:BG199,39),IF(AND(G43=AV184,H43=AV185,I43=P26,J43=BB187),VLOOKUP(I4,O188:BG199,40),IF(AND(G43=AV184,H43=AV185,I43=P27,J43=BC187),VLOOKUP(I4,O188:BG199,41),IF(AND(G43=AV184,H43=AV185,I43=P26,J43=BD187),VLOOKUP(I4,O188:BG199,42),IF(AND(G43=AV184,H43=AV185,I43=P27,J43=BE187),VLOOKUP(I4,O188:BG199,43),IF(AND(G43=AV184,H43=AV185,I43=P26,J43=BF187),VLOOKUP(I4,O188:BG199,44),IF(AND(G43=AV184,H43=AV185,I43=P27,J43=BG187),VLOOKUP(I4,O188:BG199,45),\"укажите корретные параметры\")))))))))))))))))))))))))))))))))))))))))))))),\"укажите корретные параметры\")","v":0},null,null,null,null,null,null,null,"Полиэтиленовый газопровод","Стальной газопровод"]
[null,null,null,null,null,null,null,null,null,null,null,null,null,null,null,null,{"$f":"IF(OR(H24=0,J24=0,H24=R34,J24=S38),0,VLOOKUP($I$4,P48:AV60,IF(AND(H24=R32,J24=Q44,I24=Q45),2,IF(AND(H24=R32,J24=Q44,I24=R45),3,IF(AND(H24=R32,J24=Q44,I24=S45),4,IF(AND(H24=R32,J24=Q44,I24=T45),5,IF(AND(H24=R32,J24=Q44,I24=U45),6,IF(AND(H24=R32,J24=Q44,I24=V45),7,IF(AND(H24=R32,J24=Q44,I24=W45),8,IF(AND(H24=R32,J24=Q44,I24=X45),9,IF(AND(H24=R32,J24=Y44,I24=Q45),10,IF(AND(H24=R32,J24=Y44,I24=R45),11,IF(AND(H24=R32,J24=Y44,I24=S45),12,IF(AND(H24=R32,J24=Y44,I24=T45),13,IF(AND(H24=R32,J24=Y44,I24=U45),14,IF(AND(H24=R32,J24=Y44,I24=V45),15,IF(AND(H24=R32,J24=Y44,I24=W45),16,IF(AND(H24=R32,J24=Y44,I24=X45),17,IF(AND(H24=R33,J24=Q44,I24=Q45),18,IF(AND(H24=R33,J24=Q44,I24=R45),19,IF(AND(H24=R33,J24=Q44,I24=S45),20,IF(AND(H24=R33,J24=Q44,I24=T45),21,IF(AND(H24=R33,J24=Q44,I24=U45),22,IF(AND(H24=R33,J24=Q44,I24=V45),23,IF(AND(H24=R33,J24=Q44,I24=W45),24,IF(AND(H24=R33,J24=Q44,I24=X45),25,IF(AND(H24=R33,J24=Y44,I24=Q45),26,IF(AND(H24=R33,J24=Y44,I24=R45),27,IF(AND(H24=R33,J24=Y44,I24=S45),28,IF(AND(H24=R33,J24=Y44,I24=T45),29,IF(AND(H24=R33,J24=Y44,I24=U45),30,IF(AND(H24=R33,J24=Y44,I24=V45),31,IF(AND(H24=R33,J24=Y44,I24=W45),32,IF(AND(H24=R33,J24=Y44,I24=X45),33,))))))))))))))))))))))))))))))))))","v":0},null,null,null,null,"подземная прокладка","наземная (надземная) прокладка"]
[null,null,"Стандартизированная тарифная ставка, связанная с фактическим присоединением к сети газораспределения (С7.2)",null,null,null,"Тип трубы","Тип прокладки","Давление","Наружный диаметр","Размер ставки (руб.)","Расходы",null,{"$f":"IF(OR(G43=Q37,AND(G43=0,H43=0,I43=0,J43=0)),0,IF(AND(G43=P184,H43=P185,I43=Q22,J43=P187),VLOOKUP(I4,O188:AC199,2),IF(AND(G43=P184,H43=P185,I43=Q22,J43=R187),VLOOKUP(I4,O188:AC199,4),IF(AND(G43=P184,H43=P185,I43=Q22,J43=T187),VLOOKUP(I4,O188:AC199,6),IF(AND(G43=P184,H43=P185,I43=Q22,J43=V187),VLOOKUP(I4,O188:AC199,8),IF(AND(G43=P184,H43=P185,I43=Q22,J43=X187),VLOOKUP(I4,O188:BH199,10),IF(AND(G43=P184,H43=P185,I43=Q22,J43=Z187),VLOOKUP(I4,O188:BH199,12),IF(AND(G43=P184,H43=P185,I43=Q22,J43=AB187),VLOOKUP(I4,O188:BH199,14),IF(AND(G43=P184,H43=P185,I43=Q22,J43=AD187),VLOOKUP(I4,O188:BH199,16),IF(AND(G43=P184,H43=P185,I43=Q23,J43=P187),VLOOKUP(I4,O188:AC199,3),IF(AND(G43=P184,H43=P185,I43=Q23,J43=R187),VLOOKUP(I4,O188:AC199,5),IF(AND(G43=P184,H43=P185,I43=Q23,J43=T187),VLOOKUP(I4,O188:AC199,7),IF(AND(G43=P184,H43=P185,I43=Q23,J43=V187),VLOOKUP(I4,O188:AC199,9),IF(AND(G43=P184,H43=P185,I43=Q23,J43=X187),VLOOKUP(I4,O188:BH199,11),IF(AND(G43=P184,H43=P185,I43=Q23,J43=Z187),VLOOKUP(I4,O188:BH199,13),IF(AND(G43=P184,H43=P185,I43=Q23,J43=AB187),VLOOKUP(I4,O188:BH199,15),IF(AND(G43=P184,H43=P185,I43=Q23,J43=AD187),VLOOKUP(I4,O188:BH199,17),IF(AND(G43=P184,H43=AF185,I43=Q22,J43=P187),VLOOKUP(I4,O188:AC199,18),IF(AND(G43=P184,H43=AF185,I43=Q22,J43=R187),VLOOKUP(I4,O188:AC199,20),IF(AND(G43=P184,H43=AF185,I43=Q22,J43=T187),VLOOKUP(I4,O188:AC199,22),IF(AND(G43=P184,H43=AF185,I43=Q22,J43=V187),VLOOKUP(I4,O188:AC199,24),IF(AND(G43=P184,H43=AF185,I43=Q22,J43=X187),VLOOKUP(I4,O188:BH199,26),IF(AND(G43=P184,H43=AF185,I43=Q22,J43=Z187),VLOOKUP(I4,O188:BH199,28),IF(AND(G43=P184,H43=AF185,I43=Q22,J43=AB187),VLOOKUP(I4,O188:BH199,30),IF(AND(G43=P184,H43=AF185,I43=Q22,J43=AD187),VLOOKUP(I4,O188:BH199,32),IF(AND(G43=P184,H43=AF185,I43=Q23,J43=P187),VLOOKUP(I4,O188:AC199,19),IF(AND(G43=P184,H43=AF185,I43=Q23,J43=R187),VLOOKUP(I4,O188:AC199,21),IF(AND(G43=P184,H43=AF185,I43=Q23,J43=T187),VLOOKUP(I4,O188:AC199,23),IF(AND(G43=P184,H43=AF185,I43=Q23,J43=V187),VLOOKUP(I4,O188:AC199,25),IF(AND(G43=P184,H43=AF185,I43=Q23,J43=X187),VLOOKUP(I4,O188:BH199,27),IF(AND(G43=P184,H43=AF185,I43=Q23,J43=Z187),VLOOKUP(I4,O188:BH199,29),IF(AND(G43=P184,H43=AF185,I43=Q23,J43=AB187),VLOOKUP(I4,O188:BH199,31),IF(AND(G43=P184,H43=AF185,I43=Q23,J43=AD187),VLOOKUP(I4,O188:BH199,33),IF(AND(G43=AV184,H43=AV185,I43=P26,J43=AV187),VLOOKUP(I4,O188:BG199,34),IF(AND(G43=AV184,H43=AV185,I43=P27,J43=AV187),VLOOKUP(I4,O188:BG199,34),IF(AND(G43=AV184,H43=AV185,I43=P26,J43=AX187),VLOOKUP(I4,O188:BG199,35),IF(AND(G43=AV184,H43=AV185,I43=P27,J43=AY187),VLOOKUP(I4,O188:BG199,37),IF(AND(G43=AV184,H43=AV185,I43=P26,J43=AZ187),VLOOKUP(I4,O188:BG199,38),IF(AND(G43=AV184,H43=AV185,I43=P27,J43=BA187),VLOOKUP(I4,O188:BG199,39),IF(AND(G43=AV184,H43=AV185,I43=P26,J43=BB187),VLOOKUP(I4,O188:BG199,40),IF(AND(G43=AV184,H43=AV185,I43=P27,J43=BC187),VLOOKUP(I4,O188:BG199,41),IF(AND(G43=AV184,H43=AV185,I43=P26,J43=BD187),VLOOKUP(I4,O188:BG199,42),IF(AND(G43=AV184,H43=AV185,I43=P27,J43=BE187),VLOOKUP(I4,O188:BG199,43),IF(AND(G43=AV184,H43=AV185,I43=P26,J43=BF187),VLOOKUP(I4,O188:BG199,44),IF(AND(G43=AV184,H43=AV185,I43=P27,J43=BG187),VLOOKUP(I4,O188:BG199,45),\"укажите корретные параметры\")))))))))))))))))))))))))))))))))))))))))))))","v":0},null,"С1ink","Стандартизированная тарифная ставка на покрытие расходов ГРО, связанных с разработкой проектной документации",null,null,null,null,null,"подземная прокладка"]
[null,null,null,null,null,null,null,null,null,null,{"$f":"IFERROR(IF(OR(G43=0,H43=0,I43=0,J43=0,G43=R34),0,VLOOKUP(I4,O188:BG202,IF(AND(G43=P184,H43=P185,I43=P186,J43=P187),2,IF(AND(G43=P184,H43=P185,I43=Q186,J43=Q187),3,IF(AND(G43=P184,H43=P185,I43=R186,J43=R187),4,IF(AND(G43=P184,H43=P185,I43=S186,J43=S187),5,IF(AND(G43=P184,H43=P185,I43=T186,J43=T187),6,IF(AND(G43=P184,H43=P185,I43=U186,J43=U187),7,IF(AND(G43=P184,H43=P185,I43=V186,J43=V187),8,IF(AND(G43=P184,H43=P185,I43=W186,J43=W187),9,IF(AND(G43=P184,H43=P185,I43=X186,J43=X187),10,IF(AND(G43=P184,H43=P185,I43=Y186,J43=Y187),11,IF(AND(G43=P184,H43=P185,I43=Z186,J43=Z187),12,IF(AND(G43=P184,H43=P185,I43=AA186,J43=AA187),13,IF(AND(G43=P184,H43=P185,I43=AB186,J43=AB187),14,IF(AND(G43=P184,H43=P185,I43=AC186,J43=AC187),15,IF(AND(G43=P184,H43=P185,I43=AD186,J43=AD187),16,IF(AND(G43=P184,H43=P185,I43=AE186,J43=AE187),17,IF(AND(G43=P184,H43=AF185,I43=AF186,J43=AF187),18,IF(AND(G43=P184,H43=AF185,I43=AG186,J43=AG187),19,IF(AND(G43=P184,H43=AF185,I43=AH186,J43=AH187),20,IF(AND(G43=P184,H43=AF185,I43=AI186,J43=AI187),21,IF(AND(G43=P184,H43=AF185,I43=AJ186,J43=AJ187),22,IF(AND(G43=P184,H43=AF185,I43=AK186,J43=AK187),23,IF(AND(G43=P184,H43=AF185,I43=AL186,J43=AL187),24,IF(AND(G43=P184,H43=AF185,I43=AM186,J43=AM187),25,IF(AND(G43=P184,H43=AF185,I43=AN186,J43=AN187),26,IF(AND(G43=P184,H43=AF185,I43=AO186,J43=AO187),27,IF(AND(G43=P184,H43=AF185,I43=AP186,J43=AP187),28,IF(AND(G43=P184,H43=AF185,I43=AQ186,J43=AQ187),29,IF(AND(G43=P184,H43=AF185,I43=AR186,J43=AR187),30,IF(AND(G43=P184,H43=AF185,I43=AS186,J43=AS187),31,IF(AND(G43=P184,H43=AF185,I43=AT186,J43=AT187),32,IF(AND(G43=P184,H43=AF185,I43=AU186,J43=AU187),33,IF(AND(G43=AV184,H43=AV185,I43=AV186,J43=AV187),34,IF(AND(G43=AV184,H43=AV185,I43=AW186,J43=AW187),35,IF(AND(G43=AV184,H43=AV185,I43=AX186,J43=AX187),36,IF(AND(G43=AV184,H43=AV185,I43=AY186,J43=AY187),37,IF(AND(G43=AV184,H43=AV185,I43=AZ186,J43=AZ187),38,IF(AND(G43=AV184,H43=AV185,I43=BA186,J43=BA187),39,IF(AND(G43=AV184,H43=AV185,I43=BB186,J43=BB187),40,IF(AND(G43=AV184,H43=AV185,I43=BC186,J43=BC187),41,IF(AND(G43=AV184,H43=AV185,I43=BD186,J43=BD187),42,IF(AND(G43=AV184,H43=AV185,I43=BE186,J43=BE187),43,IF(AND(G43=AV184,H43=AV185,I43=BF186,J43=BF187),44,IF(AND(G43=AV184,H43=AV185,I43=BG186,J43=BG187),45)))))))))))))))))))))))))))))))))))))))))))),0)),\"укажите корректные параметры\")","v":0},{"$f":"IFERROR(K43+K45,\"укажите корретные параметры\")","v":0},{"$f":"IFERROR(IF(OR(G43=0,H43=0,I43=0,J43=0,G43=R34),0,VLOOKUP(I4,O188:BG202,IF(AND(G43=P184,H43=P185,I43=P186,J43=P187),2,IF(AND(G43=P184,H43=P185,I43=Q186,J43=Q187),3,IF(AND(G43=P184,H43=P185,I43=R186,J43=R187),4,IF(AND(G43=P184,H43=P185,I43=S186,J43=S187),5,IF(AND(G43=P184,H43=P185,I43=T186,J43=T187),6,IF(AND(G43=P184,H43=P185,I43=U186,J43=U187),7,IF(AND(G43=P184,H43=P185,I43=V186,J43=V187),8,IF(AND(G43=P184,H43=P185,I43=W186,J43=W187),9,IF(AND(G43=P184,H43=P185,I43=X186,J43=X187),10,IF(AND(G43=P184,H43=P185,I43=Y186,J43=Y187),11,IF(AND(G43=P184,H43=P185,I43=Z186,J43=Z187),12,IF(AND(G43=P184,H43=P185,I43=AA186,J43=AA187),13,IF(AND(G43=P184,H43=P185,I43=AB186,J43=AB187),14,IF(AND(G43=P184,H43=P185,I43=AC186,J43=AC187),15,IF(AND(G43=P184,H43=P185,I43=AD186,J43=AD187),16,IF(AND(G43=P184,H43=P185,I43=AE186,J43=AE187),17,IF(AND(G43=P184,H43=AF185,I43=AF186,J43=AF187),18,IF(AND(G43=P184,H43=AF185,I43=AG186,J43=AG187),19,IF(AND(G43=P184,H43=AF185,I43=AH186,J43=AH187),20,IF(AND(G43=P184,H43=AF185,I43=AI186,J43=AI187),21,IF(AND(G43=P184,H43=AF185,I43=AJ186,J43=AJ187),22,IF(AND(G43=P184,H43=AF185,I43=AK186,J43=AK187),23,IF(AND(G43=P184,H43=AF185,I43=AL186,J43=AL187),24,IF(AND(G43=P184,H43=AF185,I43=AM186,J43=AM187),25,IF(AND(G43=P184,H43=AF185,I43=AN186,J43=AN187),26,IF(AND(G43=P184,H43=AF185,I43=AO186,J43=AO187),27,IF(AND(G43=P184,H43=AF185,I43=AP186,J43=AP187),28,IF(AND(G43=P184,H43=AF185,I43=AQ186,J43=AQ187),29,IF(AND(G43=P184,H43=AF185,I43=AR186,J43=AR187),30,IF(AND(G43=P184,H43=AF185,I43=AS186,J43=AS187),31,IF(AND(G43=P184,H43=AF185,I43=AT186,J43=AT187),32,IF(AND(G43=P184,H43=AF185,I43=AU186,J43=AU187),33,IF(AND(G43=AV184,H43=AV185,I43=AV186,J43=AV187),34,IF(AND(G43=AV184,H43=AV185,I43=AW186,J43=AW187),35,IF(AND(G43=AV184,H43=AV185,I43=AX186,J43=AX187),36,IF(AND(G43=AV184,H43=AV185,I43=AY186,J43=AY187),37,IF(AND(G43=AV184,H43=AV185,I43=AZ186,J43=AZ187),38,IF(AND(G43=AV184,H43=AV185,I43=BA186,J43=BA187),39,IF(AND(G43=AV184,H43=AV185,I43=BB186,J43=BB187),40,IF(AND(G43=AV184,H43=AV185,I43=BC186,J43=BC187),41,IF(AND(G43=AV184,H43=AV185,I43=BD186,J43=BD187),42,IF(AND(G43=AV184,H43=AV185,I43=BE186,J43=BE187),43,IF(AND(G43=AV184,H43=AV185,I43=BF186,J43=BF187),44,IF(AND(G43=AV184,H43=AV185,I43=BG186,J43=BG187),45)))))))))))))))))))))))))))))))))))))))))))),0)),\"укажите корректные параметры\")","v":0},{"$f":"IF(AND(G43=P184,H43=AF185,I43=Q22,J43=P187),VLOOKUP(I4,O188:AC199,18),IF(AND(G43=P184,H43=AF185,I43=Q22,J43=R187),VLOOKUP(I4,O188:AC199,20),IF(AND(G43=P184,H43=AF185,I43=Q22,J43=T187),VLOOKUP(I4,O188:AC199,22),IF(AND(G43=P184,H43=AF185,I43=Q22,J43=V187),VLOOKUP(I4,O188:AC199,24),IF(AND(G43=P184,H43=AF185,I43=Q22,J43=X187),VLOOKUP(I4,O188:BH199,26),IF(AND(G43=P184,H43=AF185,I43=Q22,J43=Z187),VLOOKUP(I4,O188:BH199,28),IF(AND(G43=P184,H43=AF185,I43=Q22,J43=AB187),VLOOKUP(I4,O188:BH199,30),IF(AND(G43=P184,H43=AF185,I43=Q22,J43=AD187),VLOOKUP(I4,O188:BH199,32),IF(AND(G43=P184,H43=AF185,I43=Q23,J43=P187),VLOOKUP(I4,O188:AC199,19),IF(AND(G43=P184,H43=AF185,I43=Q23,J43=R187),VLOOKUP(I4,O188:AC199,21),IF(AND(G43=P184,H43=AF185,I43=Q23,J43=T187),VLOOKUP(I4,O188:AC199,23),IF(AND(G43=P184,H43=AF185,I43=Q23,J43=V187),VLOOKUP(I4,O188:AC199,25),IF(AND(G43=P184,H43=AF185,I43=Q23,J43=X187),VLOOKUP(I4,O188:BH199,27),IF(AND(G43=P184,H43=AF185,I43=Q23,J43=Z187),VLOOKUP(I4,O188:BH199,29),IF(AND(G43=P184,H43=AF185,I43=Q23,J43=AB187),VLOOKUP(I4,O188:BH199,31),IF(AND(G43=P184,H43=AF185,I43=Q23,J43=AD187),VLOOKUP(I4,O188:BH199,33),0))))))))))))))))","v":0},null,null,"наземным (надземным) способом",null,null,null,null,null,null,null,null,null,null,null,null,null,null,null,"подземным способом "]
[null,null,null,null,null,null,null,null,null,null,null,null,null,null,null,null,"до 100 мм",null,null,null,null,null,null,null,"101 мм и более",null,null,null,null,null,null,null,"до 100 мм",null,null,null,null,null,null,null,"101 мм и более"]
[null,null,null,null,null,null,null,null,null,null,{"$f":"IFERROR(IF(OR(G45=0,H45=0,I45=0,J45=0,G45=R34),0,VLOOKUP(I4,O188:BG202,IF(AND(G45=P184,H45=P185,I45=P186,J45=P187),2,IF(AND(G45=P184,H45=P185,I45=Q186,J45=Q187),3,IF(AND(G45=P184,H45=P185,I45=R186,J45=R187),4,IF(AND(G45=P184,H45=P185,I45=S186,J45=S187),5,IF(AND(G45=P184,H45=P185,I45=T186,J45=T187),6,IF(AND(G45=P184,H45=P185,I45=U186,J45=U187),7,IF(AND(G45=P184,H45=P185,I45=V186,J45=V187),8,IF(AND(G45=P184,H45=P185,I45=W186,J45=W187),9,IF(AND(G45=P184,H45=P185,I45=X186,J45=X187),10,IF(AND(G45=P184,H45=P185,I45=Y186,J45=Y187),11,IF(AND(G45=P184,H45=P185,I45=Z186,J45=Z187),12,IF(AND(G45=P184,H45=P185,I45=AA186,J45=AA187),13,IF(AND(G45=P184,H45=P185,I45=AB186,J45=AB187),14,IF(AND(G45=P184,H45=P185,I45=AC186,J45=AC187),15,IF(AND(G45=P184,H45=P185,I45=AD186,J45=AD187),16,IF(AND(G45=P184,H45=P185,I45=AE186,J45=AE187),17,IF(AND(G45=P184,H45=AF185,I45=AF186,J45=AF187),18,IF(AND(G45=P184,H45=AF185,I45=AG186,J45=AG187),19,IF(AND(G45=P184,H45=AF185,I45=AH186,J45=AH187),20,IF(AND(G45=P184,H45=AF185,I45=AI186,J45=AI187),21,IF(AND(G45=P184,H45=AF185,I45=AJ186,J45=AJ187),22,IF(AND(G45=P184,H45=AF185,I45=AK186,J45=AK187),23,IF(AND(G45=P184,H45=AF185,I45=AL186,J45=AL187),24,IF(AND(G45=P184,H45=AF185,I45=AM186,J45=AM187),25,IF(AND(G45=P184,H45=AF185,I45=AN186,J45=AN187),26,IF(AND(G45=P184,H45=AF185,I45=AO186,J45=AO187),27,IF(AND(G45=P184,H45=AF185,I45=AP186,J45=AP187),28,IF(AND(G45=P184,H45=AF185,I45=AQ186,J45=AQ187),29,IF(AND(G45=P184,H45=AF185,I45=AR186,J45=AR187),30,IF(AND(G45=P184,H45=AF185,I45=AS186,J45=AS187),31,IF(AND(G45=P184,H45=AF185,I45=AT186,J45=AT187),32,IF(AND(G45=P184,H45=AF185,I45=AU186,J45=AU187),33,IF(AND(G45=AV184,H45=AV185,I45=AV186,J45=AV187),34,IF(AND(G45=AV184,H45=AV185,I45=AW186,J45=AW187),35,IF(AND(G45=AV184,H45=AV185,I45=AX186,J45=AX187),36,IF(AND(G45=AV184,H45=AV185,I45=AY186,J45=AY187),37,IF(AND(G45=AV184,H45=AV185,I45=AZ186,J45=AZ187),38,IF(AND(G45=AV184,H45=AV185,I45=BA186,J45=BA187),39,IF(AND(G45=AV184,H45=AV185,I45=BB186,J45=BB187),40,IF(AND(G45=AV184,H45=AV185,I45=BC186,J45=BC187),41,IF(AND(G45=AV184,H45=AV185,I45=BD186,J45=BD187),42,IF(AND(G45=AV184,H45=AV185,I45=BE186,J45=BE187),43,IF(AND(G45=AV184,H45=AV185,I45=BF186,J45=BF187),44,IF(AND(G45=AV184,H45=AV185,I45=BG186,J45=BG187),45)))))))))))))))))))))))))))))))))))))))))))),0)),\"укажите корректные параметры\")","v":0},null,{"$f":"IF(AND(G43=AV184,H43=AV185,I43=AV186,J43=AV187),34,IF(AND(G43=AV184,H43=AV185,I43=AW186,J43=AW187),35,IF(AND(G43=AV184,H43=AV185,I43=AX186,J43=AX187),36,IF(AND(G43=AV184,H43=AV185,I43=AY186,J43=AY187),37,IF(AND(G43=AV184,H43=AV185,I43=AZ186,J43=AZ187),38,IF(AND(G43=AV184,H43=AV185,I43=BA186,J43=BA187),39,IF(AND(G43=AV184,H43=AV185,I43=BB186,J43=BB187),40,IF(AND(G43=AV184,H43=AV185,I43=BC186,J43=BC187),41,IF(AND(G43=AV184,H43=AV185,I43=BD186,J43=BD187),42,IF(AND(G43=AV184,H43=AV185,I43=BE186,J43=BE187),43,IF(AND(G43=AV184,H43=AV185,I43=BF186,J43=BF187),44,IF(AND(G43=AV184,H43=AV185,I43=BG186,J43=BG187),45))))))))))))","v":false},{"$f":"IF(OR(G43=Q37,AND(G43=0,H43=0,I43=0,J43=0)),0,IF(AND(G43=P184,H43=P185,I43=Q22,J43=P187),VLOOKUP(I4,O188:BH199,2),IF(AND(G43=P184,H43=P185,I43=Q22,J43=R187),VLOOKUP(I4,O188:BH199,4),IF(AND(G43=P184,H43=P185,I43=Q22,J43=T187),VLOOKUP(I4,O188:BH199,6),IF(AND(G43=P184,H43=P185,I43=Q22,J43=V187),VLOOKUP(I4,O188:BH199,8),IF(AND(G43=P184,H43=P185,I43=Q22,J43=X187),VLOOKUP(I4,O188:BH199,10),IF(AND(G43=P184,H43=P185,I43=Q22,J43=Z187),VLOOKUP(I4,O188:BH199,12),IF(AND(G43=P184,H43=P185,I43=Q22,J43=AB187),VLOOKUP(I4,O188:BH199,14),IF(AND(G43=P184,H43=P185,I43=Q22,J43=AD187),VLOOKUP(I4,O188:BH199,16),IF(AND(G43=P184,H43=P185,I43=Q23,J43=P187),VLOOKUP(I4,O188:BH199,3),IF(AND(G43=P184,H43=P185,I43=Q23,J43=R187),VLOOKUP(I4,O188:BH199,5),IF(AND(G43=P184,H43=P185,I43=Q23,J43=T187),VLOOKUP(I4,O188:BH199,7),IF(AND(G43=P184,H43=P185,I43=Q23,J43=V187),VLOOKUP(I4,O188:BH199,9),IF(AND(G43=P184,H43=P185,I43=Q23,J43=X187),VLOOKUP(I4,O188:BH199,11),IF(AND(G43=P184,H43=P185,I43=Q23,J43=Z187),VLOOKUP(I4,O188:BH199,13),IF(AND(G43=P184,H43=P185,I43=Q23,J43=AB187),VLOOKUP(I4,O188:BH199,15),IF(AND(G43=P184,H43=P185,I43=Q23,J43=AD187),VLOOKUP(I4,O188:BH199,17),IF(AND(G43=P184,H43=AF185,I43=Q22,J43=P187),VLOOKUP(I4,O188:BH199,18),IF(AND(G43=P184,H43=AF185,I43=Q22,J43=R187),VLOOKUP(I4,O188:BH199,20),IF(AND(G43=P184,H43=AF185,I43=Q22,J43=T187),VLOOKUP(I4,O188:BH199,22),IF(AND(G43=P184,H43=AF185,I43=Q22,J43=V187),VLOOKUP(I4,O188:BH199,24),IF(AND(G43=P184,H43=AF185,I43=Q22,J43=X187),VLOOKUP(I4,O188:BH199,26),IF(AND(G43=P184,H43=AF185,I43=Q22,J43=Z187),VLOOKUP(I4,O188:BH199,28),IF(AND(G43=P184,H43=AF185,I43=Q22,J43=AB187),VLOOKUP(I4,O188:BH199,30),IF(AND(G43=P184,H43=AF185,I43=Q22,J43=AD187),VLOOKUP(I4,O188:BH199,32),IF(AND(G43=P184,H43=AF185,I43=Q23,J43=P187),VLOOKUP(I4,O188:BH199,19),IF(AND(G43=P184,H43=AF185,I43=Q23,J43=R187),VLOOKUP(I4,O188:BH199,21),IF(AND(G43=P184,H43=AF185,I43=Q23,J43=T187),VLOOKUP(I4,O188:BH199,23),IF(AND(G43=P184,H43=AF185,I43=Q23,J43=V187),VLOOKUP(I4,O188:BH199,25),IF(AND(G43=P184,H43=AF185,I43=Q23,J43=X187),VLOOKUP(I4,O188:BH199,27),IF(AND(G43=P184,H43=AF185,I43=Q23,J43=Z187),VLOOKUP(I4,O188:BH199,29),IF(AND(G43=P184,H43=AF185,I43=Q23,J43=AB187),VLOOKUP(I4,O188:BH199,31),IF(AND(G43=P184,H43=AF185,I43=Q23,J43=AD187),VLOOKUP(I4,O188:BH199,33),IF(AND(G43=AV184,H43=AV185,I43=P26,J43=AV187),VLOOKUP(I4,O188:BG199,34),IF(AND(G43=AV184,H43=AV185,I43=P27,J43=AV187),VLOOKUP(I4,O188:BG199,34),IF(AND(G43=AV184,H43=AV185,I43=P26,J43=AX187),VLOOKUP(I4,O188:BG199,35),IF(AND(G43=AV184,H43=AV185,I43=P27,J43=AY187),VLOOKUP(I4,O188:BG199,37),IF(AND(G43=AV184,H43=AV185,I43=P26,J43=AZ187),VLOOKUP(I4,O188:BG199,38),IF(AND(G43=AV184,H43=AV185,I43=P27,J43=BA187),VLOOKUP(I4,O188:BG199,39),IF(AND(G43=AV184,H43=AV185,I43=P26,J43=BB187),VLOOKUP(I4,O188:BG199,40),IF(AND(G43=AV184,H43=AV185,I43=P27,J43=BC187),VLOOKUP(I4,O188:BG199,41),IF(AND(G43=AV184,H43=AV185,I43=P26,J43=BD187),VLOOKUP(I4,O188:BG199,42),IF(AND(G43=AV184,H43=AV185,I43=P27,J43=BE187),VLOOKUP(I4,O188:BG199,43),IF(AND(G43=AV184,H43=AV185,I43=P26,J43=BF187),VLOOKUP(I4,O188:BG199,44),IF(AND(G43=AV184,H43=AV185,I43=P27,J43=BG187),VLOOKUP(I4,O188:BG199,45),\"укажите корретные параметры\")))))))))))))))))))))))))))))))))))))))))))))","v":0},null,null,"до 100 м","101-500м","501-1000м","1001-2000м","2001-3000м","3001-4000м","4001-5000м","5001 и более","до 100 м","101-500м","501-1000м","1001-2000м","2001-3000м","3001-4000м","4001-5000м","5001 и более","до 100 м","101-500м","501-1000м","1001-2000м","2001-3000м","3001-4000м","4001-5000м","5001 и более","до 100 м","101-500м","501-1000м","1001-2000м","2001-3000м","3001-4000м","4001-5000м","5001 и более"]
[null,null,"Врезка № 2",null,null,null,null,null,null,null,{"$f":"IF(AND(D46=W40,J46=P187),VLOOKUP(I4,O188:AC199,2,0),IF(AND(D46=W40,J46=#REF!),VLOOKUP(I4,O188:AC199,3,0),IF(AND(D46=W40,J46=#REF!),VLOOKUP(I4,O188:AC199,4,0),IF(AND(D46=W40,J46=#REF!),VLOOKUP(I4,O188:AC199,5,0),IF(AND(D46=W40,J46=#REF!),VLOOKUP(I4,O188:AC199,6,0),IF(AND(D46=W40,J46=#REF!),VLOOKUP(I4,O188:AC199,7,0),IF(AND(D46=W40,J46=#REF!),VLOOKUP(I4,O188:AC199,8,0),IF(AND(D46=W40,J46=#REF!),VLOOKUP(I4,O188:AC199,9,0),IF(AND(D46=V40,J46=AV187),VLOOKUP(I4,O188:AC199,10,0),IF(AND(D46=V40,J46=BF192),VLOOKUP(I4,O188:AC199,11,0),IF(AND(D46=V40,J46=BF190),VLOOKUP(I4,O188:AC199,12,0),IF(AND(D46=V40,J46=BG192),VLOOKUP(I4,O188:AC199,13,0),IF(AND(D46=V40,J46=#REF!),VLOOKUP(I4,O188:AC199,14,0),IF(AND(D46=V40,J46=#REF!),VLOOKUP(I4,O188:AC199,15,0),\"заданы недопустимые параметры\"))))))))))))))","v":{"$error":"#REF!"}},"руб.",null,null,null,null,"менее 100 мм","101 мм и более","менее 100 мм","101 мм и более",null,{"$f":"INDIRECT(IF($D$45=W40,SUBSTITUTE(S206,\" \",\"_\"),IF(D45=V40,SUBSTITUTE(T206,\" \",\"_\"),0)))","v":{"$error":"#REF!"}}]
[null,null,"Плата за технологическое присоединение (Птп)",null,null,null,null,null,null,null,{"$f":"IF(AND(I3=N29,I7<=5,I8<=0.3,I5<=0.2,I9=Q37),N30,IF(AND(I3=O29,I7<=15,I8<=0.3,I5<=0.2,I9=Q37),N31,IFERROR(L24+L27+L30+L33+L36+L38+L40+L43,\"выберите корректные параметры\")))","v":0},{"$f":"IF(OR(K47=N30,K47=N31),\"руб. с учетом НДС\",\"руб. без учета НДС\")","v":"руб. без учета НДС"},null,null,null,1,2,3,4,5,6,7,8,9,10,11,12,13,14,15,16,17,18,19,20,21,22,23,24,25,26,27,28,29,30,31,32,33]
[null,null,{"$f":"IF(OR(K47=N30,K47=N31),\"При данных условиях подключения заявитель относится к льготной категории!!!\",\"\")","v":""},null,null,null,null,null,null,null,null,null,null,null,1,"АО «Газпром газораспределение Челябинск»",26852.04,48608.63,423812.43,365236.7,515878.71,608994.17000000004,702099.29,784873.64,17961.439999999999,111459.51,267323.31,405818.56,573198.56999999995,676660.19,780110.33,872081.83,83757.72,85064.66,323409.24,608727.84,859797.86,1014990.29,1170165.49,1308122.74,49984.33,177791.04,681362.06,709019.32,955330.95,1127766.99,1300183.8799999999,1453469.71]
[null,null,null,null,null,null,null,null,null,null,null,null,null,null,2,"АО «Челябинскгоргаз» ",20601.259999999998,62081.29,240590.99,365236.71,515878.71,608994.17000000004,702099.29,784873.64,7073.09,68979.210000000006,267323.31,405818.56,573198.56999999995,676660.19,780110.32,872081.82,108525.47,177193.73,400984.97,608727.84,859797.86,1014990.29,1170165.49,1308122.74,256062.5,306500.5,1296732.8999999999,676364.27,955330.95,1127766.99,1300183.8799999999,1453469.71]
[null,null,"ВНИМАНИЕ! Данные расчеты носят справочный характер и не могут являться окончательными для оплаты стоимости технологического присоединения. Калькулятор расчета платы за технологическое присоединение к сетям газораспределения предназначен для примерного расчета стоимости размера платы за технологическое присоединение к сетям газораспределения газораспределительных организаций Челябинской области",null,null,null,null,null,null,null,null,null,null,null,3,"ООО «Магнитогорскгазстрой»",35611.660000000003,114116.41,199301.47,289975.28000000003,370237.07,431542.67,489444.07,543941.26,6077.14,107427.47,193228.45,281139.28000000003,358955.38,418392.9,474529.96,527366.54,50515.81,138006.85,242658.54,353058,450780.36,525422.69999999995,595920.27,662273.06000000006,40267.03,114965.34,386367.63,578956.12,739204.46,861605.42,977209.65,1086017.145]
[null,null,null,null,null,null,null,null,null,null,null,null,null,null,4,"ООО «Классик»",39176,85067.98,227117.89,344783.45,486989.5,574890.5,662781.74,740920.72,64647.41,65116.37,252353.2,383092.72,541099.44999999995,638767.23,736424.14,823245.25,24466.37,100754.06,378529.81,574639.09,811649.18,958150.84,1104636.23,1234867.8600000001,21692.38,132289,333088,544271,901832.41,1064612.04,1227373.58,1372075.41]
[null,null,null,null,null,null,null,null,null,null,null,null,null,null,5,"АО «Трансэнерго»",19058.37,"ставка не установлена","ставка не установлена","ставка не установлена","ставка не установлена","ставка не установлена","ставка не установлена","ставка не установлена","ставка не установлена","ставка не установлена","ставка не установлена","ставка не установлена","ставка не установлена","ставка не установлена","ставка не установлена","ставка не установлена","ставка не установлена",85256.54,"ставка не установлена","ставка не установлена","ставка не установлена","ставка не установлена","ставка не установлена","ставка не установлена","ставка не установлена","ставка не установлена","ставка не установлена","ставка не установлена","ставка не установлена","ставка не установлена","ставка не установлена","ставка не установлена"]
[null,null,null,null,null,null,null,null,null,null,null,null,null,null,6,"ООО «Златоустгазстрой»",16929.189999999999,"ставка не установлена","ставка не установлена","ставка не установлена","ставка не установлена","ставка не установлена","ставка не установлена","ставка не установлена",813.55,"ставка не установлена","ставка не установлена","ставка не установлена","ставка не установлена","ставка не установлена","ставка не установлена","ставка не установлена",18725.939999999999,"ставка не установлена","ставка не установлена","ставка не установлена","ставка не установлена","ставка не установлена","ставка не установлена","ставка не установлена",114743.83,"ставка не установлена","ставка не установлена","ставка не установлена","ставка не установлена","ставка не установлена","ставка не установлена","ставка не установлена"]
[null,null,null,null,null,null,null,null,null,null,null,null,null,null,7,"ООО Индустриальный парк «Станкомаш»",111807.6,274870,794983.5,"ставка не установлена","ставка не установлена","ставка не установлена","ставка не установлена","ставка не установлена",111807.6,274870,830115,"ставка не установлена","ставка не установлена","ставка не установлена","ставка не установлена","ставка не установлена","ставка не установлена","ставка не установлена","ставка не установлена","ставка не установлена","ставка не установлена","ставка не установлена","ставка не установлена","ставка не установлена","ставка не установлена","ставка не установлена","ставка не установлена","ставка не установлена","ставка не установлена","ставка не установлена","ставка не установлена","ставка не установлена"]
[null,null,null,null,null,null,null,null,null,null,null,null,null,null,8,"ООО «СтандартЛимит»",60000,60000,"ставка не установлена","ставка не установлена","ставка не установлена","ставка не установлена","ставка не установлена","ставка не установлена","ставка не установлена","ставка не установлена","ставка не установлена","ставка не установлена","ставка не установлена","ставка не установлена","ставка не установлена","ставка не установлена",99000,110000,"ставка не установлена","ставка не установлена","ставка не установлена","ставка не установлена","ставка не установлена","ставка не установлена","ставка не установлена","ставка не установлена","ставка не установлена","ставка не установлена","ставка не установлена","ставка не установлена","ставка не установлена","ставка не установлена"]
[null,null,null,null,null,null,null,null,null,null,null,null,null,null,9,"МУП «Теплоэнерго»",59320.68,"ставка не установлена","ставка не установлена","ставка не установлена","ставка не установлена","ставка не установлена","ставка не установлена","ставка не установлена","ставка не установлена","ставка не установлена","ставка не установлена","ставка не установлена","ставка не установлена","ставка не установлена","ставка не установлена","ставка не установлена",98867.8,"ставка не установлена","ставка не установлена","ставка не установлена","ставка не установлена","ставка не установлена","ставка не установлена","ставка не установлена","ставка не установлена","ставка не установлена","ставка не установлена","ставка не установлена","ставка не установлена","ставка не установлена","ставка не установлена","ставка не установлена"]
[null,null,null,null,null,null,null,null,null,null,null,null,null,null,10,"МУП «Многоотраслевое производственное объединение энергосетей» г. Трехгорного",60000,60000,"ставка не установлена","ставка не установлена","ставка не установлена","ставка не установлена","ставка не установлена","ставка не установлена","ставка не установлена","ставка не установлена","ставка не установлена","ставка не установлена","ставка не установлена","ставка не установлена","ставка не установлена","ставка не установлена",99000,110000,"ставка не установлена","ставка не установлена","ставка не установлена","ставка не установлена","ставка не установлена","ставка не установлена","ставка не установлена","ставка не установлена","ставка не установлена","ставка не установлена","ставка не установлена","ставка не установлена","ставка не установлена","ставка не установлена"]
[null,null,null,null,null,null,null,null,null,null,null,null,null,null,11,"ООО «Озерскгаз»",60000,60000,"ставка не установлена","ставка не установлена","ставка не установлена","ставка не установлена","ставка не установлена","ставка не установлена","ставка не установлена","ставка не установлена","ставка не установлена","ставка не установлена","ставка не установлена","ставка не установлена","ставка не установлена","ставка не установлена",99000,110000,"ставка не установлена","ставка не установлена","ставка не установлена","ставка не установлена","ставка не установлена","ставка не установлена","ставка не установлена","ставка не установлена","ставка не установлена","ставка не установлена","ставка не установлена","ставка не установлена","ставка не установлена","ставка не установлена"]
[null,null,null,null,null,null,null,null,null,null,null,null,null,null,12,"ООО «Маг-Энерго»",60000,60000,"ставка не установлена","ставка не установлена","ставка не установлена","ставка не установлена","ставка не установлена","ставка не установлена","ставка не установлена","ставка не установлена","ставка не установлена","ставка не установлена","ставка не установлена","ставка не установлена","ставка не установлена","ставка не установлена",99000,110000,"ставка не установлена","ставка не установлена","ставка не установлена","ставка не установлена","ставка не установлена","ставка не установлена","ставка не установлена","ставка не установлена","ставка не установлена","ставка не установлена","ставка не установлена","ставка не установлена","ставка не установлена","ставка не установлена"]
[null,null,null,null,null,null,null,null,null,null,null,null,null,null,13,"ООО \"Партнер-Газ\"",49872,70444.2,227237.67,344965.31,487246.35,508527.06,663131.31999999995,741311.52,55607.28,77455.66,30795.96,383294.79,541384.86,639104.14,736812.57,823679.47,87197.92,106171.3,378729.47,574938.85,812077.59,958656.01,1105218.8700000001,1235518.52,105978,108584.52,401718.96,638824.64,902308.09,1065166.8999999999,1228020.96,1372799.11]
[null,null,null,null,null,null,null,null,null,null,null,null,null,null,14,"ООО \"Тополь М\"",49872,57838.97,224150.2,340279.28,480626.17,500711.93,654121.38,731239.35,55607.28,64265.52,30795.96,378086.98,534029.07999999996,635051.85,726801.53,812488.17,88381.18,96398.27,373583.69,567127.13,801043.93,945630.79,1090202.31,1218731.58,99455.84,107109.19,411778.48,634774.12,890048.47,1050694.43,1211335.8899999999,1354146.95]
[null,null,null,null,null,null,null,null,null,null,null,null,null,null,15,"МУП \"Магнитогорские газовые сети\"",39176,85067.98,227117.89,344783.45,486989.5,574890.5,662781.74,740920.72,64647.41,65116.37,252353.2,383092.72,541099.44999999995,638767.23,736424.14,823245.25,24466.37,100754.06,378529.81,574639.09,811649.18,958150.84,1104636.23,1234867.8600000001,21692.38,132289,333088,544271,901832.41,1064612.04,1227373.58,1372075.41]
[]
[null,null,null,null,null,null,null,null,null,null,null,null,null,null,null,"С2ik","Стандартизированные тарифные ставки на покрытие расходов ГРО, связанных со строительством (реконструкцией) стального газопровода"]
[null,null,null,null,null,null,null,null,null,null,null,null,null,null,null,null,"50 мм и менее",null,"51-100 мм",null,"101-158 мм",null,"159 - 218 мм",null,"219 - 272 мм",null,"273 - 324 мм"]
[null,null,null,null,null,null,null,null,null,null,null,null,null,null,null,null,"наземным (надземным) способом","подземным способом ","наземным (надземным) способом","подземным способом ","наземным (надземным) способом","подземным способом ","наземным (надземным) способом","подземным способом ","наземным (надземным) способом","подземным способом ","наземным (надземным) способом","подземным способом "]
[null,null,null,null,null,null,null,null,null,null,null,null,null,null,1,"АО «Газпром газораспределение Челябинск»",1648059.33,1726317.91,1526849.8,2071655.17,1711961.11,2086640.17,2636397.35,1946004.55,4024114.11,3862421.11,5154730,6280728.6100000003]
[null,null,null,null,null,null,null,null,null,null,null,null,null,null,2,"АО «Челябинскгоргаз» ",1898371.67,2292033.19,1514718.31,2421299.7000000002,2025022.4,3073599.5,3370091.66,4647148.92,5095602.7699999996,5019734.16,5766692.7000000002,7708852.9000000004]
[null,null,null,null,null,null,null,null,null,null,null,null,null,null,3,"ООО «Магнитогорскгазстрой»",1283523.4099999999,3175233,1609453.08,3013171.47,1959474.69,3087423.84,3520240.96,3865777.15,3469545.57,4855484.9400000004,5567545.0099999998,7435953.5700000003]
[null,null,null,null,null,null,null,null,null,null,null,null,null,null,4,"ООО «Классик»",832478.53,1028589.48,994434.59,1277032.443,1298527.6499999999,1408455.6,2210158.87,2127737.09,3297205.52,714428.08,3734026.07,4554447.59]
[null,null,null,null,null,null,null,null,null,null,null,null,null,null,5,"АО «Трансэнерго»","ставка не установлена","ставка не установлена",1712599.26,"ставка не установлена","ставка не установлена","ставка не установлена","ставка не установлена","ставка не установлена","ставка не установлена","ставка не установлена","ставка не установлена","ставка не установлена"]
[null,null,null,null,null,null,null,null,null,null,null,null,null,null,6,"ООО «Златоустгазстрой»",1319208.6000000001,"ставка не установлена",1366429.83,"ставка не установлена",1986615.89,"ставка не установлена","ставка не установлена","ставка не установлена","ставка не установлена","ставка не установлена","ставка не установлена","ставка не установлена"]
[null,null,null,null,null,null,null,null,null,null,null,null,null,null,7,"ООО Индустриальный парк «Станкомаш»","ставка не установлена","ставка не установлена",1421296.8,"ставка не установлена",2673457.2000000002,"ставка не установлена",3069822,"ставка не установлена",4046044.8,"ставка не установлена",4922397.5999999996,"ставка не установлена"]
[null,null,null,null,null,null,null,null,null,null,null,null,null,null,8,"ООО «СтандартЛимит»",950000,1170000,1020000,1450000,1049000,"ставка не установлена","ставка не установлена","ставка не установлена","ставка не установлена","ставка не установлена","ставка не установлена","ставка не установлена"]
[null,null,null,null,null,null,null,null,null,null,null,null,null,null,9,"МУП «Теплоэнерго»","ставка не установлена","ставка не установлена",2025815,"ставка не установлена","ставка не установлена","ставка не установлена","ставка не установлена","ставка не установлена","ставка не установлена","ставка не установлена","ставка не установлена","ставка не установлена"]
[null,null,null,null,null,null,null,null,null,null,null,null,null,null,10,"МУП «Многоотраслевое производственное объединение энергосетей» г. Трехгорного",950000,1170000,1020000,1450000,1049000,"ставка не установлена","ставка не установлена","ставка не установлена","ставка не установлена","ставка не установлена","ставка не установлена","ставка не установлена"]
[null,null,null,null,null,null,null,null,null,null,null,null,null,null,11,"ООО «Озерскгаз»",950000,1170000,1020000,1450000,1049000,"ставка не установлена","ставка не установлена","ставка не установлена","ставка не установлена","ставка не установлена","ставка не установлена","ставка не установлена"]
[null,null,null,null,null,null,null,null,null,null,null,null,null,null,12,"ООО «Маг-Энерго»",950000,1170000,1020000,1450000,1049000,"ставка не установлена","ставка не установлена","ставка не установлена","ставка не установлена","ставка не установлена","ставка не установлена","ставка не установлена"]
[null,null,null,null,null,null,null,null,null,null,null,null,null,null,13,"ООО \"Партнер-Газ\"",952079,1152589,1141916,1801800,1307893.2,1994880,2677459,3005411.4,3629182,3940511.4,4369439,5865445]
[null,null,null,null,null,null,null,null,null,null,null,null,null,null,14,"ООО \"Тополь М\"",952079,1152589,1141916,1801800,1307893.2,1994880,2677459,3005411.4,3629182,3940511.4,4369439,5865445]
[null,null,null,null,null,null,null,null,null,null,null,null,null,null,15,"МУП \"Магнитогорские газовые сети\"",832478.53,1028589.48,994434.59,1277032.443,1298527.6499999999,1408455.6,2210158.87,2127737.09,3297205.52,714428.08,3734026.07,4554447.59]
[]
[]
[]
[]
[null,null,null,null,null,null,null,null,null,null,null,null,null,null,null,"С3j","Стандартизированная тарифная ставка на покрытие расходов ГРО, связанных со строительством полиэтиленового газопровода"]
[null,null,null,null,null,null,null,null,null,null,null,null,null,null,null,null,"109 мм и менее","110 - 159 мм","160 - 224 мм","225 - 314 мм","315-399 мм","400 мм и выше"]
[null,null,null,null,null,null,null,null,null,null,null,null,null,null,1,"АО «Газпром газораспределение Челябинск»",1581403.311,1481574.115,2233777.1,3720874.8459999999,5190454.93,8079820.0999999996]
[null,null,null,null,null,null,null,null,null,null,null,null,null,null,2,"АО «Челябинскгоргаз» ",3073292.17,2581143.2599999998,4479093.7699999996,4637303.87,6466601.7400000002,9680951.6099999994]
[null,null,null,null,null,null,null,null,null,null,null,null,null,null,3,"ООО «Магнитогорскгазстрой»",2001227.16,2532623.09,2851858.02,4962393.2,6229899.3300000001,9347180.9499999993]
[null,null,null,null,null,null,null,null,null,null,null,null,null,null,4,"ООО «Классик»",970075.83,1220568.18,1968658.37,2792146.86,3760055.84,5865295.8799999999]
[null,null,null,null,null,null,null,null,null,null,null,null,null,null,5,"АО «Трансэнерго»",873983.33,1168565.18,2329072.86,"ставка не установлена","ставка не установлена","ставка не установлена"]
[null,null,null,null,null,null,null,null,null,null,null,null,null,null,6,"ООО «Златоустгазстрой»",974567.57,1314221.72,"ставка не установлена","ставка не установлена","ставка не установлена","ставка не установлена"]
[null,null,null,null,null,null,null,null,null,null,null,null,null,null,7,"ООО Индустриальный парк «Станкомаш»","ставка не установлена","ставка не установлена","ставка не установлена","ставка не установлена","ставка не установлена","ставка не установлена"]
[null,null,null,null,null,null,null,null,null,null,null,null,null,null,8,"ООО «СтандартЛимит»",815000,"ставка не установлена","ставка не установлена","ставка не установлена","ставка не установлена","ставка не установлена"]
[null,null,null,null,null,null,null,null,null,null,null,null,null,null,9,"МУП «Теплоэнерго»",665595,"ставка не установлена","ставка не установлена","ставка не установлена","ставка не установлена","ставка не установлена"]
[null,null,null,null,null,null,null,null,null,null,null,null,null,null,10,"МУП «Многоотраслевое производственное объединение энергосетей» г. Трехгорного",815000,"ставка не установлена","ставка не установлена","ставка не установлена","ставка не установлена","ставка не установлена"]
[null,null,null,null,null,null,null,null,null,null,null,null,null,null,11,"ООО «Озерскгаз»",815000,"ставка не установлена","ставка не установлена","ставка не установлена","ставка не установлена","ставка не установлена"]
[null,null,null,null,null,null,null,null,null,null,null,null,null,null,12,"ООО «Маг-Энерго»",815000,"ставка не установлена","ставка не установлена","ставка не установлена","ставка не установлена","ставка не установлена"]
[null,null,null,null,null,null,null,null,null,null,null,null,null,null,13,"ООО \"Партнер-Газ\"",975218,1289438,1862606,2742960,3927420,6143306]
[null,null,null,null,null,null,null,null,null,null,null,null,null,null,14,"ООО \"Тополь М\"",975218,1289438,1862606,2742960,3927420,6143306]
[null,null,null,null,null,null,null,null,null,null,null,null,null,null,15,"МУП \"Магнитогорские газовые сети\"",970075.83,1220568.18,1968658.37,2792146.86,3760055.84,5865295.8799999999]
[]
[]
[]
[null,null,null,null,null,null,null,null,null,null,null,null,null,null,null,"C4i(j)n","Стандартизированная тарифная ставка на покрытие расходов ГРО, связанных со строительством стальных(полиэтиленовых) газопроводов бестраншейным способом"]
[null,null,null,null,null,null,null,null,null,null,null,null,null,null,null,null,"стальные газопроводы",null,null,null,null,null,null,null,null,"полиэтиленовые газопроводы"]
[null,null,null,null,null,null,null,null,null,null,null,null,null,null,null,null,"50 мм и менее",null,null,"51 – 100 мм",null,null,"101 – 158 мм",null,null,"109 мм и менее",null,null,"110 - 158 мм"]
[null,null,null,null,null,null,null,null,null,null,null,null,null,null,null,null,"I и II гр.грунтов","III гр.грунтов","IV гр.грунтов","I и II гр.грунтов","III гр.грунтов","IV гр.грунтов","I и II гр.грунтов","III гр.грунтов","IV гр.грунтов","I и II гр.грунтов","III гр.грунтов","IV гр.грунтов","I и II гр.грунтов","III гр.грунтов","IV гр.грунтов"]
[null,null,null,null,null,null,null,null,null,null,null,null,null,null,1,"АО «Газпром газораспределение Челябинск»",5369900.2580000004,5369900.2580000004,5369900.2580000004,5829683.852,5829683.852,5829683.852,6132494.3399999999,6132494.3399999999,6132494.3399999999,5159362.1900000004,5307345.8830000004,5159362.1900000004,5163828.3650000002,5163828.3650000002,5163828.3650000002]
[null,null,null,null,null,null,null,null,null,null,null,null,null,null,2,"АО «Челябинскгоргаз» ",5400673.3200000003,5400673.3200000003,5400673.3200000003,5863091.7800000003,5863091.7800000003,5863091.7800000003,6167637.5700000003,6167637.5700000003,6167637.5700000003,5188928.74,3700703.44,5188928.74,5193420.5,5193420.5,5193420.5]
[null,null,null,null,null,null,null,null,null,null,null,null,null,null,3,"ООО «Магнитогорскгазстрой»",6527349.5300000003,6527349.5300000003,6527349.5300000003,6936579.5899999999,6936579.5899999999,6936579.5899999999,7116807.1299999999,7116807.1299999999,7116807.1299999999,7096450,7186017.5199999996,7186017.5199999996,7471163.2800000003,7471163.2800000003,7471163.2800000003]
[null,null,null,null,null,null,null,null,null,null,null,null,null,null,4,"ООО «Классик»","ставка не установлена","ставка не установлена","ставка не установлена","ставка не установлена","ставка не установлена","ставка не установлена","ставка не установлена","ставка не установлена","ставка не установлена","ставка не установлена","ставка не установлена","ставка не установлена",710469.85,709849.86,709849.86]
[null,null,null,null,null,null,null,null,null,null,null,null,null,null,5,"АО «Трансэнерго»","ставка не установлена","ставка не установлена","ставка не установлена","ставка не установлена","ставка не установлена","ставка не установлена","ставка не установлена","ставка не установлена","ставка не установлена","ставка не установлена","ставка не установлена","ставка не установлена","ставка не установлена","ставка не установлена","ставка не установлена"]
[null,null,null,null,null,null,null,null,null,null,null,null,null,null,6,"ООО «Златоустгазстрой»","ставка не установлена","ставка не установлена","ставка не установлена","ставка не установлена","ставка не установлена","ставка не установлена","ставка не установлена","ставка не установлена","ставка не установлена","ставка не установлена","ставка не установлена","ставка не установлена","ставка не установлена","ставка не установлена","ставка не установлена"]
[null,null,null,null,null,null,null,null,null,null,null,null,null,null,7,"ООО Индустриальный парк «Станкомаш»","ставка не установлена","ставка не установлена","ставка не установлена","ставка не установлена","ставка не установлена","ставка не установлена","ставка не установлена","ставка не установлена","ставка не установлена","ставка не установлена","ставка не установлена","ставка не установлена","ставка не установлена","ставка не установлена","ставка не установлена"]
[null,null,null,null,null,null,null,null,null,null,null,null,null,null,8,"ООО «СтандартЛимит»","ставка не установлена","ставка не установлена","ставка не установлена","ставка не установлена","ставка не установлена","ставка не установлена","ставка не установлена","ставка не установлена","ставка не установлена","ставка не установлена","ставка не установлена","ставка не установлена","ставка не установлена","ставка не установлена","ставка не установлена"]
[null,null,null,null,null,null,null,null,null,null,null,null,null,null,9,"МУП «Теплоэнерго»","ставка не установлена","ставка не установлена","ставка не установлена","ставка не установлена","ставка не установлена","ставка не установлена","ставка не установлена","ставка не установлена","ставка не установлена","ставка не установлена","ставка не установлена","ставка не установлена","ставка не установлена","ставка не установлена","ставка не установлена"]
[null,null,null,null,null,null,null,null,null,null,null,null,null,null,10,"МУП «Многоотраслевое производственное объединение энергосетей» г. Трехгорного","ставка не установлена","ставка не установлена","ставка не установлена","ставка не установлена","ставка не установлена","ставка не установлена","ставка не установлена","ставка не установлена","ставка не установлена","ставка не установлена","ставка не установлена","ставка не установлена","ставка не установлена","ставка не установлена","ставка не установлена"]
[null,null,null,null,null,null,null,null,null,null,null,null,null,null,11,"ООО «Озерскгаз»","ставка не установлена","ставка не установлена","ставка не установлена","ставка не установлена","ставка не установлена","ставка не установлена","ставка не установлена","ставка не установлена","ставка не установлена","ставка не установлена","ставка не установлена","ставка не установлена","ставка не установлена","ставка не установлена","ставка не установлена"]
[null,null,null,null,null,null,null,null,null,null,null,null,null,null,12,"ООО «Маг-Энерго»","ставка не установлена","ставка не установлена","ставка не установлена","ставка не установлена","ставка не установлена","ставка не установлена","ставка не установлена","ставка не установлена","ставка не установлена","ставка не установлена","ставка не установлена","ставка не установлена","ставка не установлена","ставка не установлена","ставка не установлена"]
[null,null,null,null,null,null,null,null,null,null,null,null,null,null,13,"ООО \"Партнер-Газ\"",5804006,5804006,5804006,6081182,6081182,6081182,6388362,6388362,6388362,5886893,5886893,5886893,6896410,6896410,6896410]
[null,null,null,null,null,null,null,null,null,null,null,null,null,null,14,"ООО \"Тополь М\"",5804006,5804006,5804006,5798417.9500000002,5798417.9500000002,5798417.9500000002,6388362,6388362,6388362,5886893,5886893,5886893,6896410,6896410,6896410]
[null,null,null,null,null,null,null,null,null,null,null,null,null,null,15,"МУП \"Магнитогорские газовые сети\"","ставка не установлена","ставка не установлена","ставка не установлена","ставка не установлена","ставка не установлена","ставка не установлена","ставка не установлена","ставка не установлена","ставка не установлена","ставка не установлена","ставка не установлена","ставка не установлена",710469.85,709849.86,709849.86]
[null,null,null,null,null,null,null,null,null,null,null,null,null,null,null,1,2,3,4,5,6,7,8,9,10,11,12,13,14,15,16]
[null,null,null,null,null,null,null,null,null,null,null,null,null,null,null,"C5m","Стандартизированная тарифная ставка на покрытие расходов ГРО, связанных с проектированием и строительством пунктов редуцирования газа"]
[null,null,null,null,null,null,null,null,null,null,null,null,null,null,null,null,"до 40 куб. метров в час","40 - 99 куб. метров в час","100 - 399 куб. метров в час","400 - 999 куб. метров в час","1000 - 1999 куб. метров в час","2000 - 2999 куб. метров в час","3000 - 3999 куб. метров в час","4000 - 4999 куб. метров в час","5000 - 9999 куб. метров в час","10000 - 19999 куб. метров в час","20000 - 29999 куб. метров в час"]
[null,null,null,null,null,null,null,null,null,null,null,null,null,null,1,"АО «Газпром газораспределение Челябинск»",9561.69,2572.58,678.81,227.74,214.16,184.02,150.36000000000001,79.349999999999994,39.630000000000003,39.049999999999997,25.99]
[null,null,null,null,null,null,null,null,null,null,null,null,null,null,2,"АО «Челябинскгоргаз» ",3938.61,1575.46,572.63,229.01,215.43,185.05,151.22,79.77,39.86,39.28,26.13]
[null,null,null,null,null,null,null,null,null,null,null,null,null,null,3,"ООО «Магнитогорскгазстрой»",3561.55,1424.64,1029.54,206.05,192.81,165.51,135.13,71.459999999999994,35.700000000000003,35.020000000000003,23.33]
[null,null,null,null,null,null,null,null,null,null,null,null,null,null,4,"ООО «Классик»",4173.57,1617.29,978.06,205.98,192.74,165.38,135.13,71.400000000000006,35.700000000000003,35.020000000000003,23.33]
[null,null,null,null,null,null,null,null,null,null,null,null,null,null,5,"АО «Трансэнерго»",3979.65,1596.79,"ставка не установлена","ставка не установлена","ставка не установлена","ставка не установлена","ставка не установлена","ставка не установлена","ставка не установлена","ставка не установлена","ставка не установлена"]
[null,null,null,null,null,null,null,null,null,null,null,null,null,null,6,"ООО «Златоустгазстрой»","ставка не установлена","ставка не установлена","ставка не установлена","ставка не установлена","ставка не установлена","ставка не установлена","ставка не установлена","ставка не установлена","ставка не установлена","ставка не установлена","ставка не установлена"]
[null,null,null,null,null,null,null,null,null,null,null,null,null,null,7,"ООО Индустриальный парк «Станкомаш»","ставка не установлена","ставка не установлена","ставка не установлена","ставка не установлена","ставка не установлена","ставка не установлена","ставка не установлена","ставка не установлена","ставка не установлена","ставка не установлена","ставка не установлена"]
[null,null,null,null,null,null,null,null,null,null,null,null,null,null,8,"ООО «СтандартЛимит»",4000,1500,"ставка не установлена","ставка не установлена","ставка не установлена","ставка не установлена","ставка не установлена","ставка не установлена","ставка не установлена","ставка не установлена","ставка не установлена"]
[null,null,null,null,null,null,null,null,null,null,null,null,null,null,9,"МУП «Теплоэнерго»","ставка не установлена","ставка не установлена","ставка не установлена","ставка не установлена","ставка не установлена","ставка не установлена","ставка не установлена","ставка не установлена","ставка не установлена","ставка не установлена","ставка не установлена"]
[null,null,null,null,null,null,null,null,null,null,null,null,null,null,10,"МУП «Многоотраслевое производственное объединение энергосетей» г. Трехгорного",4000,1500,"ставка не установлена","ставка не установлена","ставка не установлена","ставка не установлена","ставка не установлена","ставка не установлена","ставка не установлена","ставка не установлена","ставка не установлена"]
[null,null,null,null,null,null,null,null,null,null,null,null,null,null,11,"ООО «Озерскгаз»",4000,1500,"ставка не установлена","ставка не установлена","ставка не установлена","ставка не установлена","ставка не установлена","ставка не установлена","ставка не установлена","ставка не установлена","ставка не установлена"]
[null,null,null,null,null,null,null,null,null,null,null,null,null,null,12,"ООО «Маг-Энерго»",4000,1500,"ставка не установлена","ставка не установлена","ставка не установлена","ставка не установлена","ставка не установлена","ставка не установлена","ставка не установлена","ставка не установлена","ставка не установлена"]
[null,null,null,null,null,null,null,null,null,null,null,null,null,null,13,"ООО \"Партнер-Газ\"",3874,1394.64,619.6,227.76,192.22,"ставка не установлена","ставка не установлена","ставка не установлена","ставка не установлена","ставка не установлена","ставка не установлена"]
[null,null,null,null,null,null,null,null,null,null,null,null,null,null,14,"ООО \"Тополь М\"",3874,1394.64,619.6,227.76,192.22,"ставка не установлена","ставка не установлена","ставка не установлена","ставка не установлена","ставка не установлена","ставка не установлена"]
[null,null,null,null,null,null,null,null,null,null,null,null,null,null,15,"МУП \"Магнитогорские газовые сети\"",4173.57,1617.29,978.06,205.98,192.74,165.38,135.13,71.400000000000006,35.700000000000003,35.020000000000003,23.33]
[]
[]
[null,null,null,null,null,null,null,null,null,null,null,null,null,null,null,"C6","Стандартизированная тарифная ставка на покрытие расходов ГРО, связанных со строительством устройств электрохимической (катодной) защиты от коррозии"]
[null,null,null,null,null,null,null,null,null,null,null,null,null,null,1,"АО «Газпром газораспределение Челябинск»",2406.91]
[null,null,null,null,null,null,null,null,null,null,null,null,null,null,2,"АО «Челябинскгоргаз» ",3428.41]
[null,null,null,null,null,null,null,null,null,null,null,null,null,null,3,"ООО «Магнитогорскгазстрой»",2995.41]
[null,null,null,null,null,null,null,null,null,null,null,null,null,null,4,"ООО «Классик»",3136.19]
[null,null,null,null,null,null,null,null,null,null,null,null,null,null,5,"АО «Трансэнерго»","ставка не установлена"]
[null,null,null,null,null,null,null,null,null,null,null,null,null,null,6,"ООО «Златоустгазстрой»","ставка не установлена"]
[null,null,null,null,null,null,null,null,null,null,null,null,null,null,7,"ООО Индустриальный парк «Станкомаш»","ставка не установлена"]
[null,null,null,null,null,null,null,null,null,null,null,null,null,null,8,"ООО «СтандартЛимит»",3200]
[null,null,null,null,null,null,null,null,null,null,null,null,null,null,9,"МУП «Теплоэнерго»","ставка не установлена"]
[null,null,null,null,null,null,null,null,null,null,null,null,null,null,10,"МУП «Многоотраслевое производственное объединение энергосетей» г. Трехгорного",3200]
[null,null,null,null,null,null,null,null,null,null,null,null,null,null,11,"ООО «Озерскгаз»",3200]
[null,null,null,null,null,null,null,null,null,null,null,null,null,null,12,"ООО «Маг-Энерго»",3200]
[null,null,null,null,null,null,null,null,null,null,null,null,null,null,13,"ООО \"Партнер-Газ\"",3094.74]
[null,null,null,null,null,null,null,null,null,null,null,null,null,null,14,"ООО \"Тополь М\"",3094.74]
[null,null,null,null,null,null,null,null,null,null,null,null,null,null,15,"МУП \"Магнитогорские газовые сети\"",3136.19]
[]
[]
[]
[null,null,null,null,null,null,null,null,null,null,null,null,null,null,null,"С7.1","Стандартизированная тарифная ставка на покрытие расходов ГРО, связанных с мониторингом выполнения Заявителем технических условий",null,null,null,null,"Z - коэффициент подключений"]
[null,null,null,null,null,null,null,null,null,null,null,null,null,null,1,"АО «Газпром газораспределение Челябинск»",2717.37,null,null,null,null,"1 - 5 подключений",1]
[null,null,null,null,null,null,null,null,null,null,null,null,null,null,2,"АО «Челябинскгоргаз» ",2717.19,null,null,null,null,"6 - 10 подключений",1.5]
[null,null,null,null,null,null,null,null,null,null,null,null,null,null,3,"ООО «Магнитогорскгазстрой»",2719.48,null,null,null,null,"11 - 30 подключений",3]
[null,null,null,null,null,null,null,null,null,null,null,null,null,null,4,"ООО «Классик»",979.25,null,null,null,null,"31 - 100 подключений",4]
[null,null,null,null,null,null,null,null,null,null,null,null,null,null,5,"АО «Трансэнерго»",2715.61,null,null,null,null,"Свыше 100 подключений",5]
[null,null,null,null,null,null,null,null,null,null,null,null,null,null,6,"ООО «Златоустгазстрой»",2723.94]
[null,null,null,null,null,null,null,null,null,null,null,null,null,null,7,"ООО Индустриальный парк «Станкомаш»",2815.2,null,null,null,null,null,null,null,null,null,null,null,null,null,null,null,null,null,null,null,null,null,null,null,null,null,null,null,{"$f":"IF(AND(G43=AV184,H43=AV185,I43=P26,J43=AV187),VLOOKUP(I4,O188:BG199,34),IF(AND(G43=AV184,H43=AV185,I43=P27,J43=AV187),VLOOKUP(I4,O188:BG199,34),IF(AND(G43=AV184,H43=AV185,I43=P26,J43=AX187),VLOOKUP(I4,O188:BG199,35),IF(AND(G43=AV184,H43=AV185,I43=P27,J43=AY187),VLOOKUP(I4,O188:BG199,37),IF(AND(G43=AV184,H43=AV185,I43=P26,J43=AZ187),VLOOKUP(I4,O188:BG199,38),IF(AND(G43=AV184,H43=AV185,I43=P27,J43=BA187),VLOOKUP(I4,O188:BG199,39),IF(AND(G43=AV184,H43=AV185,I43=P26,J43=BB187),VLOOKUP(I4,O188:BG199,40),IF(AND(G43=AV184,H43=AV185,I43=P27,J43=BC187),VLOOKUP(I4,O188:BG199,41),IF(AND(G43=AV184,H43=AV185,I43=P26,J43=BD187),VLOOKUP(I4,O188:BG199,42),IF(AND(G43=AV184,H43=AV185,I43=P27,J43=BE187),VLOOKUP(I4,O188:BG199,43),IF(AND(G43=AV184,H43=AV185,I43=P26,J43=BF187),VLOOKUP(I4,O188:BG199,44),IF(AND(G43=AV184,H43=AV185,I43=P27,J43=BG187),VLOOKUP(I4,O188:BG199,45)))))))))))))","v":false}]
[null,null,null,null,null,null,null,null,null,null,null,null,null,null,8,"ООО «СтандартЛимит»",2783.78]
[null,null,null,null,null,null,null,null,null,null,null,null,null,null,9,"МУП «Теплоэнерго»",2722.08]
[null,null,null,null,null,null,null,null,null,null,null,null,null,null,10,"МУП «Многоотраслевое производственное объединение энергосетей» г. Трехгорного",2783.78,null,null,null,null,"до 100 мм"]
[null,null,null,null,null,null,null,null,null,null,null,null,null,null,11,"ООО «Озерскгаз»",2783.78,null,null,null,null,"101-158 мм",null,null,"наземная (надземная) прокладка"]
[null,null,null,null,null,null,null,null,null,null,null,null,null,null,12,"ООО «Маг-Энерго»",2783.78,null,null,null,null,"159-218 мм",null,null,"подземная прокладка"]
[null,null,null,null,null,null,null,null,null,null,null,null,null,null,13,"ООО \"Партнер-Газ\"",2815.2,null,null,null,null,"219-272 мм"]
[null,null,null,null,null,null,null,null,null,null,null,null,null,null,14,"ООО \"Тополь М\"",2653.6,null,null,null,null,"273-324 мм"]
[null,null,null,null,null,null,null,null,null,null,null,null,null,null,15,"МУП \"Магнитогорские газовые сети\"",979.25,null,null,null,null,"325-425 мм"]
[null,null,null,null,null,null,null,null,null,null,null,null,null,"до 0,6 МПа",null,null,null,null,null,null,null,"426-529 мм"]
[null,null,null,null,null,null,null,null,null,null,null,null,null,"от 0,6 МПа до 1,2 МПа",null,null,null,null,null,null,null,"530 мм и выше"]
[]
[null,null,null,null,null,null,null,null,null,null,null,null,null,null,null,"С7.2","Стандартизированная тарифная ставка, связанная с фактическим присоединением к сети газораспределения"]
[null,null,null,null,null,null,null,null,null,null,null,null,null,null,null,"Стальные газопроводы",null,null,null,null,null,null,null,null,null,null,null,null,null,null,null,null,null,null,null,null,null,null,null,null,null,null,null,null,null,null,null,"Полиэтиленовые газопроводы"]
[null,null,null,null,null,null,null,null,null,null,null,null,null,null,null,"наземная (надземная) прокладка",null,null,null,null,null,null,null,null,null,null,null,null,null,null,null,"подземная прокладка",null,null,null,null,null,null,null,null,null,null,null,null,null,null,null,"Подземная прокладка"]
[null,null,null,null,null,null,null,null,null,null,null,null,null,null,null,"до 0,005 Мпа","от 0,005 МПа до 1,2 МПа","до 0,005 Мпа","от 0,005 МПа до 1,2 МПа","до 0,005 Мпа","от 0,005 МПа до 1,2 МПа","до 0,005 Мпа","от 0,005 МПа до 1,2 МПа","до 0,005 Мпа","от 0,005 МПа до 1,2 МПа","до 0,005 Мпа","от 0,005 МПа до 1,2 МПа","до 0,005 Мпа","от 0,005 МПа до 1,2 МПа","до 0,005 Мпа","от 0,005 МПа до 1,2 МПа","до 0,005 Мпа","от 0,005 МПа до 1,2 МПа","до 0,005 Мпа","от 0,005 МПа до 1,2 МПа","до 0,005 Мпа","от 0,005 МПа до 1,2 МПа","до 0,005 Мпа","от 0,005 МПа до 1,2 МПа","до 0,005 Мпа","от 0,005 МПа до 1,2 МПа","до 0,005 Мпа","от 0,005 МПа до 1,2 МПа","до 0,005 Мпа","от 0,005 МПа до 1,2 МПа","до 0,005 Мпа","от 0,005 МПа до 1,2 МПа","до 0,6 МПа","от 0,6 МПа до 1,2 МПа","до 0,6 МПа","от 0,6 МПа до 1,2 МПа","до 0,6 МПа","от 0,6 МПа до 1,2 МПа","до 0,6 МПа","от 0,6 МПа до 1,2 МПа","до 0,6 МПа","от 0,6 МПа до 1,2 МПа","до 0,6 МПа","от 0,6 МПа до 1,2 МПа"]
[null,null,null,null,null,null,null,null,null,null,null,null,null,null,null,"до 100 мм","до 100 мм","101-158 мм","101-158 мм","159-218 мм","159-218 мм","219-272 мм","219-272 мм","273-324 мм","273-324 мм","325-425 мм","325-425 мм","426-529 мм","426-529 мм","530 мм и выше","530 мм и выше","до 100 мм","до 100 мм","101-158 мм","101-158 мм","159-218 мм","159-218 мм","219-272 мм","219-272 мм","273-324 мм","273-324 мм","325-425 мм","325-425 мм","426-529 мм","426-529 мм","530 мм и выше","530 мм и выше","109 мм и менее","109 мм и менее","110-159 мм","110-159 мм","160-224 мм","160-224 мм","225-314 мм","225-314 мм","315-399 мм","315-399 мм","400 мм и выше","400 мм и выше"]
[null,null,null,null,null,null,null,null,null,null,null,null,null,1,"АО «Газпром газораспределение Челябинск»",4243.09,5250.45,6986.49,6994.64,13285.81,"ставка не установлена",15763.58,15763.58,20310.34,20310.34,26920.27,26920.27,33654.379999999997,33654.379999999997,35701.54,35701.54,4237.38,5453.67,6994.64,6994.64,13285.81,13285.81,15763.58,"ставка не установлена",19642.64,"ставка не установлена",26920.27,"ставка не установлена",33654.379999999997,"ставка не установлена",35701.54,"ставка не установлена",6177.14,8047.97,7598.51,17478,9708.1299999999992,"ставка не установлена",14851.49,14080.46,14922.59,14922.59,15692.24,15692.24]
[null,null,null,null,null,null,null,null,null,null,null,null,null,2,"АО «Челябинскгоргаз» ",6183.06,4490.84,8418.56,26029.59,13842.12,14080.5,17246.64,16299.42,20310.34,20310.34,26035.279999999999,26290.27,33654.379999999997,33654.379999999997,35701.54,35701.54,8190.72,4490.84,8343.5879999999997,28673.99,17975.849999999999,25008.74,16103.63,36946.28,19498.03,20310.34,26920.27,26920.27,32548,37708.11,35701.54,52861.26,6461.55,6465.66,8433.94,7903.52,8370.1,10038.129999999999,11295.42,14080.46,14922.59,14922.59,15692.24,15692.24]
[null,null,null,null,null,null,null,null,null,null,null,null,null,3,"ООО «Магнитогорскгазстрой»",4516.0200000000004,4823.1000000000004,7365.54,"ставка не установлена","ставка не установлена","ставка не установлена","ставка не установлена","ставка не установлена","ставка не установлена","ставка не установлена","ставка не установлена","ставка не установлена","ставка не установлена","ставка не установлена","ставка не установлена","ставка не установлена",4614.75,5191.59,"ставка не установлена","ставка не установлена",8293.56,"ставка не установлена",15178.62,"ставка не установлена","ставка не установлена","ставка не установлена","ставка не установлена","ставка не установлена","ставка не установлена","ставка не установлена","ставка не установлена","ставка не установлена",7199.74,"ставка не установлена",8101.75,"ставка не установлена",13020.75,"ставка не установлена",16482.77,"ставка не установлена","ставка не установлена","ставка не установлена","ставка не установлена","ставка не установлена"]
[null,null,null,null,null,null,null,null,null,null,null,null,null,4,"ООО «Классик»",5320.56,4253.8100000000004,7021.75,7021.75,13337.31,13337.31,15824.68,15824.68,19718.78,19718.78,26136.19,26136.19,32674.16,32674.16,34661.69,34661.69,4253.8100000000004,4253.8100000000004,7021.75,7021.75,13337.31,13337.31,15824.68,15824.68,19718.78,19718.78,26136.19,26136.19,32674.16,32674.16,34661.69,34661.69,5351.17,6277.33,746.59,7673.32,9745.76,9745.76,13670.35,13670.35,14487.94,14487.94,15235.19,15235.19]
[null,null,null,null,null,null,null,null,null,null,null,null,null,5,"АО «Трансэнерго»",3012.21,2173.7800000000002,4212.97,"ставка не установлена",3859.29,"ставка не установлена","ставка не установлена","ставка не установлена","ставка не установлена","ставка не установлена","ставка не установлена","ставка не установлена","ставка не установлена","ставка не установлена","ставка не установлена","ставка не установлена","ставка не установлена","ставка не установлена","ставка не установлена","ставка не установлена","ставка не установлена","ставка не установлена","ставка не установлена","ставка не установлена","ставка не установлена",4225.91,"ставка не установлена","ставка не установлена","ставка не установлена","ставка не установлена","ставка не установлена","ставка не установлена",5273.57,"ставка не установлена",1197.8900000000001,"ставка не установлена",364.07,"ставка не установлена","ставка не установлена","ставка не установлена","ставка не установлена","ставка не установлена","ставка не установлена","ставка не установлена"]
[null,null,null,null,null,null,null,null,null,null,null,null,null,6,"ООО «Златоустгазстрой»",5255.02,"ставка не установлена","ставка не установлена","ставка не установлена","ставка не установлена","ставка не установлена","ставка не установлена","ставка не установлена","ставка не установлена","ставка не установлена","ставка не установлена","ставка не установлена","ставка не установлена","ставка не установлена","ставка не установлена","ставка не установлена","ставка не установлена","ставка не установлена","ставка не установлена","ставка не установлена","ставка не установлена","ставка не установлена","ставка не установлена","ставка не установлена","ставка не установлена","ставка не установлена","ставка не установлена","ставка не установлена","ставка не установлена","ставка не установлена","ставка не установлена","ставка не установлена",5188.58,"ставка не установлена","ставка не установлена","ставка не установлена","ставка не установлена","ставка не установлена","ставка не установлена","ставка не установлена","ставка не установлена","ставка не установлена","ставка не установлена","ставка не установлена"]
[null,null,null,null,null,null,null,null,null,null,null,null,null,7,"ООО Индустриальный парк «Станкомаш»",16941.71,16941.71,25175.84,25175.84,38295.74,38295.74,41224.51,41224.51,53808.800000000003,53808.800000000003,"ставка не установлена","ставка не установлена","ставка не установлена","ставка не установлена","ставка не установлена","ставка не установлена","ставка не установлена","ставка не установлена","ставка не установлена","ставка не установлена","ставка не установлена","ставка не установлена","ставка не установлена","ставка не установлена","ставка не установлена","ставка не установлена","ставка не установлена","ставка не установлена","ставка не установлена","ставка не установлена","ставка не установлена","ставка не установлена","ставка не установлена","ставка не установлена","ставка не установлена","ставка не установлена","ставка не установлена","ставка не установлена","ставка не установлена","ставка не установлена","ставка не установлена","ставка не установлена","ставка не установлена","ставка не установлена"]
[null,null,null,null,null,null,null,null,null,null,null,null,null,8,"ООО «СтандартЛимит»",4500,4500,7000,7000,"ставка не установлена","ставка не установлена","ставка не установлена","ставка не установлена","ставка не установлена","ставка не установлена","ставка не установлена","ставка не установлена","ставка не установлена","ставка не установлена","ставка не установлена","ставка не установлена",4500,"ставка не установлена",7000,"ставка не установлена","ставка не установлена","ставка не установлена","ставка не установлена","ставка не установлена","ставка не установлена","ставка не установлена","ставка не установлена","ставка не установлена","ставка не установлена","ставка не установлена","ставка не установлена","ставка не установлена",6577.54,"ставка не установлена","ставка не установлена","ставка не установлена","ставка не установлена","ставка не установлена","ставка не установлена","ставка не установлена","ставка не установлена","ставка не установлена","ставка не установлена","ставка не установлена"]
[null,null,null,null,null,null,null,null,null,null,null,null,null,9,"МУП «Теплоэнерго»",4237.38,"ставка не установлена","ставка не установлена","ставка не установлена","ставка не установлена","ставка не установлена","ставка не установлена","ставка не установлена","ставка не установлена","ставка не установлена","ставка не установлена","ставка не установлена","ставка не установлена","ставка не установлена","ставка не установлена","ставка не установлена","ставка не установлена","ставка не установлена","ставка не установлена","ставка не установлена","ставка не установлена","ставка не установлена","ставка не установлена","ставка не установлена","ставка не установлена","ставка не установлена","ставка не установлена","ставка не установлена","ставка не установлена","ставка не установлена","ставка не установлена","ставка не установлена","ставка не установлена","ставка не установлена","ставка не установлена","ставка не установлена","ставка не установлена","ставка не установлена","ставка не установлена","ставка не установлена","ставка не установлена","ставка не установлена","ставка не установлена","ставка не установлена"]
[null,null,null,null,null,null,null,null,null,null,null,null,null,10,"МУП «Многоотраслевое производственное объединение энергосетей» г. Трехгорного",4500,4500,7000,7000,"ставка не установлена","ставка не установлена","ставка не установлена","ставка не установлена","ставка не установлена","ставка не установлена","ставка не установлена","ставка не установлена","ставка не установлена","ставка не установлена","ставка не установлена","ставка не установлена",4500,"ставка не установлена",7000,"ставка не установлена","ставка не установлена","ставка не установлена","ставка не установлена","ставка не установлена","ставка не установлена","ставка не установлена","ставка не установлена","ставка не установлена","ставка не установлена","ставка не установлена","ставка не установлена","ставка не установлена",6577.54,"ставка не установлена","ставка не установлена","ставка не установлена","ставка не установлена","ставка не установлена","ставка не установлена","ставка не установлена","ставка не установлена","ставка не установлена","ставка не установлена","ставка не установлена"]
[null,null,null,null,null,null,null,null,null,null,null,null,null,11,"ООО «Озерскгаз»",4500,4500,7000,7000,"ставка не установлена","ставка не установлена","ставка не установлена","ставка не установлена","ставка не установлена","ставка не установлена","ставка не установлена","ставка не установлена","ставка не установлена","ставка не установлена","ставка не установлена","ставка не установлена",4500,"ставка не установлена",7000,"ставка не установлена","ставка не установлена","ставка не установлена","ставка не установлена","ставка не установлена","ставка не установлена","ставка не установлена","ставка не установлена","ставка не установлена","ставка не установлена","ставка не установлена","ставка не установлена","ставка не установлена",6577.54,"ставка не установлена","ставка не установлена","ставка не установлена","ставка не установлена","ставка не установлена","ставка не установлена","ставка не установлена","ставка не установлена","ставка не установлена","ставка не установлена","ставка не установлена"]
[null,null,null,null,null,null,null,null,null,null,null,null,null,12,"ООО «Маг-Энерго»",4500,4500,7000,7000,"ставка не установлена","ставка не установлена","ставка не установлена","ставка не установлена","ставка не установлена","ставка не установлена","ставка не установлена","ставка не установлена","ставка не установлена","ставка не установлена","ставка не установлена","ставка не установлена",4500,"ставка не установлена",7000,"ставка не установлена","ставка не установлена","ставка не установлена","ставка не установлена","ставка не установлена","ставка не установлена","ставка не установлена","ставка не установлена","ставка не установлена","ставка не установлена","ставка не установлена","ставка не установлена","ставка не установлена",6577.54,"ставка не установлена","ставка не установлена","ставка не установлена","ставка не установлена","ставка не установлена","ставка не установлена","ставка не установлена","ставка не установлена","ставка не установлена","ставка не установлена","ставка не установлена"]
[null,null,null,null,null,null,null,null,null,null,null,null,null,13,"ООО \"Партнер-Газ\"",3478,3478,5082,5082,6942,6942,8405,8405,9827,8405,14700,14700,19802,19802,25174,25174,3249,3249,6491,6491,8533,8533,10083,10183,11627,11627,18751,18751,23920,23920,34503.26,29883,9827,7178,7899,9611,15495,13143,16102,19896,27189,23684,73702,29669]
[null,null,null,null,null,null,null,null,null,null,null,null,null,14,"ООО \"Тополь М\"",3691.85,4241.79,5316.8,6390.09,8564.6299999999992,11525.76,14063.58,14947.47,16003.17,19362.78,21883.01,24883.47,29285.33,31658.58,36002.480000000003,33515.370000000003,"ставка не установлена","ставка не установлена","ставка не установлена","ставка не установлена","ставка не установлена","ставка не установлена","ставка не установлена","ставка не установлена","ставка не установлена","ставка не установлена","ставка не установлена","ставка не установлена","ставка не установлена","ставка не установлена","ставка не установлена","ставка не установлена",6201.72,"ставка не установлена",7029.72,"ставка не установлена",9468.18,"ставка не установлена",12454.16,"ставка не установлена",14140.17,"ставка не установлена",6201.72,"ставка не установлена"]
[null,null,null,null,null,null,null,null,null,null,null,null,null,15,"МУП \"Магнитогорские газовые сети\"",5320.56,4253.8100000000004,7021.75,7021.75,13337.31,13337.31,15824.68,15824.68,19718.78,19718.78,26136.19,26136.19,32674.16,32674.16,34661.69,34661.69,4253.8100000000004,4253.8100000000004,7021.75,7021.75,13337.31,13337.31,15824.68,15824.68,19718.78,19718.78,26136.19,26136.19,32674.16,32674.16,34661.69,34661.69,5351.17,6277.33,746.59,7673.32,9745.76,9745.76,13670.35,13670.35,14487.94,14487.94,15235.19,15235.19]
[null,null,null,null,null,null,null,null,null,null,null,null,null,null,1,2,3,4,5,6,7,8,9,10,11,12,13,14,15,16,17,18,19,20,21,22,23,24,25,26,27,28,29,30,31,32,33,34,35,36,37,38,39,40,41,42,43,44,45]
[]
[]
[null,null,null,null,null,null,null,null,null,null,null,null,null,null,null,null,null,null,"с 7.2 сталь","с 7.2. полиэтилен"]
[null,null,null,null,null,null,null,null,null,null,null,null,null,null,null,null,null,null,"до 100 мм","109 мм и менее"]
[null,null,null,null,null,null,null,null,null,null,null,null,null,null,null,null,null,null,"101-158 мм","110-159 мм"]
[null,null,null,null,null,null,null,null,null,null,null,null,null,null,null,null,null,null,"159-218 мм","160-224 мм"]
[null,null,null,null,null,null,null,null,null,null,null,null,null,null,null,null,null,null,"219-272 мм","225-314 мм"]
[null,null,null,null,null,null,null,null,null,null,null,null,null,null,null,null,null,null,"273-324 мм","315-399 мм"]
[null,null,null,null,null,null,null,null,null,null,null,null,null,null,null,null,null,null,"325-425 мм","400 мм и выше"]
[null,null,null,null,null,null,null,null,null,null,null,null,null,null,null,null,null,null,"426-529 мм"]
[null,null,null,null,null,null,null,null,null,null,null,null,null,null,null,null,null,null,"530 мм и выше"]

{"sheet":"Птпз","index":1,"n_rows":169,"n_cols":26,"rows_kept":169,"cut":false,"hidden":false,"merged":[[34,11,35,11],[31,7,32,7],[31,9,32,9],[23,11,24,11],[28,11,29,11],[27,2,27,8],[28,2,29,8],[23,9,24,9],[30,2,30,6],[31,2,32,6],[31,8,32,8],[33,2,33,8],[34,2,35,8],[34,10,35,10],[28,10,29,10],[28,9,29,9],[39,16,39,19],[40,16,40,17],[40,18,40,19],[14,2,16,10],[34,9,35,9],[23,5,24,5],[23,10,24,10],[22,2,22,4],[20,2,20,8],[21,2,21,8],[23,2,24,4],[23,6,24,6],[23,8,24,8],[23,7,24,7],[31,10,32,10],[31,11,32,11],[26,2,26,7],[25,2,25,7],[8,6,8,8],[7,2,7,10],[8,2,8,5],[9,6,9,8],[10,2,10,10],[9,2,9,5],[11,2,11,6],[12,2,12,6],[11,7,11,8],[12,7,12,8],[11,9,11,10],[12,9,12,10],[4,2,4,6],[5,2,5,6],[6,2,6,6],[6,7,6,10],[4,7,4,11],[5,7,5,11],[3,2,3,6],[2,2,2,6],[2,7,2,11],[3,7,3,11],[0,2,1,11],[72,19,72,27],[42,2,42,9],[77,21,77,22],[77,23,77,25],[76,15,76,23],[77,15,77,16],[77,17,77,18],[77,19,77,20],[49,23,49,28],[43,2,47,11]]}
[null,null,"Расчет платы за технологическое присоединение в границах земельного участка Заявителя "]
[]
[null,null,"Цель использования газа",null,null,null,null,null,null,null,null,null,null,null,"Размер платы за технологическое присоединение (Птп) определяется на основании утвержденных размеров стандартизированных тарифных ставок по следующей формуле"]
[null,null,"Наименование ГРО"]
[null,null,"Количество отключающих устройств",null,null,null,null,null,null,null,null,null,null,null,"ают строительство только газопроводов-вводов (без устройства пунктов редуцирования газа и необходимости выполнения ме"]
[null,null,"Максимальный часовой расход газа, куб.метров в час"]
[null,null,"Необходимость строительства пунктов редуцирования газа (да/нет)"]
[null,null,"Строительство газопровода внутри границ участка Заявителя до объекта капитального строительства\nгазопровода внутри границ участка Заявителя до объекта капитального строительства "]
[null,null,"Тип трубы",null,null,null,"Тип прокладки",null,null,"Диаметр трубы","Длина участка (км)"]
[null,null,"Полиэтиленовый газопровод",null,null,null,"подземная прокладка",null,null,"26-38 мм",0.02]
[null,null,"Строительство на объекте капитального строительства внутренних газопроводов"]
[null,null,"Тип трубы",null,null,null,null,"Диаметр трубы",null,"Длина участка (км)"]
[null,null,"Стальные газопроводы",null,null,null,null,"11-15 мм",null,0.01]
[]
[null,null,"Размер платы за технологическое присоединение в границах земельного участка Заявителя определяется по следующей формуле:\n",null,null,null,null,null,null,null,null,null,null,"Спр","Сг","Спрг","Соу","Сокс","Спу"]
[null,null,null,null,null,null,null,null,null,null,null,null,null,{"$f":"VLOOKUP($H$4,O59:P73,2,0)","v":{"$error":"#N/A"}},{"$f":"IF(AND(C10=R29,G10=R30,J10=S30),VLOOKUP(H4,O80:Z96,2,0),IF(AND(C10=R29,G10=R30,J10=S31),VLOOKUP(H4,O80:Z96,4,0),IF(AND(C10=R29,G10=R30,J10=S32),VLOOKUP(H4,O80:Z96,6,0),IF(AND(C10=R29,G10=R30,J10=S33),VLOOKUP(H4,O80:Z96,8,0),IF(AND(C10=R29,G10=R31,J10=S30),VLOOKUP(H4,O80:Z96,3,0),IF(AND(C10=R29,G10=R31,J10=S31),VLOOKUP(H4,O80:Z96,5,0),IF(AND(C10=R29,G10=R31,J10=S32),VLOOKUP(H4,O80:Z96,7,0),IF(AND(C10=R29,G10=R31,J10=S33),VLOOKUP(H4,O80:Z96,9,0),IF(AND(C10=Q29,J10=T30),VLOOKUP(H4,O80:Z96,10,0),IF(AND(C10=Q29,J10=T31),VLOOKUP(H4,O80:Z96,11,0),IF(AND(C10=Q29,J10=T32),VLOOKUP(H4,O80:Z96,12,0),\"не правильно заданы параметры\")))))))))))","v":"не правильно заданы параметры"},{"$f":"IF(H7=Q34,IF(H6=0,0,VLOOKUP(H4,O99:S114,IF(OR(H6>10,H6=10),2,IF(AND(11<=H6,H6<=20),3,IF(AND(21<=H6,H6<=31),4,IF(AND(32<=H6,H6<=49),5)))),0)),0)","v":0},{"$f":"IF(H5=0,0,VLOOKUP(H4,O117:P131,2,0))","v":0},{"$f":"IF(H32=Q35,0,VLOOKUP(H4,O138:T152,IF(I32=P137,2,IF(I32=Q137,3,IF(I32=R137,4,IF(I32=S137,5,IF(I32=T137,6))))),0))","v":{"$error":"#N/A"}},{"$f":"VLOOKUP(H4,O155:P169,2,0)","v":{"$error":"#N/A"}}]
[null,null,null,null,null,null,null,null,null,null,null,null,null,{"$f":"N16","v":{"$error":"#N/A"}},{"$f":"IFERROR(O16*K10*1000,\"не правильно заданы параметры\")","v":"не правильно заданы параметры"},{"$f":"P16","v":0},{"$f":"Q16*H5","v":0},{"$f":"R16","v":{"$error":"#N/A"}},{"$f":"IFERROR(S16,\"укажитекорретные параметры\")","v":"укажитекорретные параметры"}]
[null,null,null,null,null,null,null,null,null,null,null,null,null,null,null,null,null,null," "]
[null,null,null,null,null,null,null,null,null,null,null,null,null,null,{"$f":"IF(K10=0,0,IF(AND(C10=R29,G10=R30,J10=S30),VLOOKUP($H$4,O80:Z91,2),IF(AND(C10=R29,G10=R30,J10=R78),VLOOKUP($H$4,O80:Z91,4),IF(AND(C10=R29,G10=R30,J10=T78),VLOOKUP($H$4,O80:Z91,6),IF(AND(C10=R29,G10=R30,J10=V78),VLOOKUP($H$4,O80:Z91,8),0)))))","v":0},null,null,null,"с1"]
[null,null,null,null,null,null,null,null,null,null,null,null,null,null,null,null,null,null,"c2",{"$f":"IF(OR(#REF!=0,#REF!=0,#REF!=0),0,IF(#REF!=R29,VLOOKUP($H$4,#REF!,IF(AND(#REF!=R30,#REF!=#REF!),2,IF(AND(#REF!=R31,#REF!=#REF!),3,0))),0))","v":{"$error":"#REF!"}}]
[null,null,"Наименование ставки",null,null,null,null,null,null,"Необходимость","Размер ставки (руб)","Расходы (руб)",null,"cr",{"$f":"IF(AND(C10=R29,G10=R30,J10=S30),VLOOKUP(H4,O80:Z96,2,0),IF(AND(C10=R29,G10=R30,J10=S31),VLOOKUP(H4,O80:Z96,4,0),IF(AND(C10=R29,G10=R30,J10=S32),VLOOKUP(H4,O80:Z96,6,0),IF(AND(C10=R29,G10=R30,J10=S33),VLOOKUP(H4,O80:Z96,8,0),IF(AND(C10=R29,G10=R31,J10=S30),VLOOKUP(H4,O80:Z96,3,0),IF(AND(C10=R29,G10=R31,J10=S31),VLOOKUP(H4,O80:Z96,5,0),IF(AND(C10=R29,G10=R31,J10=S32),VLOOKUP(H4,O80:Z96,7,0),IF(AND(C10=R29,G10=R31,J10=S33),VLOOKUP(H4,O80:Z96,9,0),IF(AND(C10=Q29,J10=T30),VLOOKUP(H4,O80:Z96,10,0),IF(AND(C10=Q29,J10=T31),VLOOKUP(H4,O80:Z96,11,0),IF(AND(C10=Q29,J10=T32),VLOOKUP(H4,O80:Z96,12,0),0)))))))))))","v":0},{"$f":"INDIRECT(IF(AND(C13=R29,OR(G13=R30,G13=R31)),SUBSTITUTE($S$29,\" \",\"_\"),IF(AND(C13=R29,G13=R32),SUBSTITUTE($U$29,\" \",\"_\"),IF(AND(C13=Q29,G13=Q30),SUBSTITUTE($T$29,\" \",\"_\"),IF(AND(C13=Q29,G13=Q31),SUBSTITUTE($V$29,\" \",\"_\"),0)))))","v":{"$error":"#REF!"}},null,null,"c3",{"$f":"IF(OR(#REF!=0,#REF!=0,#REF!=0),0,IF(#REF!=Q29,VLOOKUP($H$4,#REF!,IF(AND(#REF!=Q30,#REF!=#REF!),2,IF(AND(#REF!=Q30,#REF!=#REF!),3,0)))))","v":{"$error":"#REF!"}}]
[null,null,"Стандартизированная тарифная ставки на проектирование сети газопотребления (Спр)",null,null,null,null,null,null,null,{"$f":"IFERROR(IF(J22=Q34,N17,0),\"укажите корретные параметры\")","v":0},{"$f":"K22","v":0},null,null,null,{"$f":"INDIRECT(IF(AND(P24=AC40,OR(S24=AC41,S24=AC42)),SUBSTITUTE($S$29,\" \",\"_\"),IF(AND(P24=AC40,S24=AC43),SUBSTITUTE($U$29,\" \",\"_\"),IF(AND(P24=AB40,S24=AB41),SUBSTITUTE($T$29,\" \",\"_\"),IF(AND(P24=AB40,S24=AB42),SUBSTITUTE($V$29,\" \",\"_\"),0)))))","v":{"$error":"#VALUE!"}},null,null,"c4",{"$f":"IF(AND(OR(#REF!=0,#REF!=0,#REF!=0),#REF!=Q31),0,IF(AND(OR(#REF!=Q29,#REF!=R29),#REF!=Q31),VLOOKUP($H$4,#REF!,IF(#REF!=#REF!,2,IF(#REF!=#REF!,3,0)))))","v":{"$error":"#REF!"}}]
[null,null,"Наименование ставки",null,null,"Необходимость","Тип трубы","Тип прокладки","Диаметр трубы","Протяженность (км)","Размер ставки (руб/км)","Расходы (руб)"]
[null,null,"Стандартизированная тарифная ставки на строительство газопровода и устройств системы электрохимической защиты от коррозии (Сг)",null,null,null,null,null,null,null,{"$f":"IFERROR(IF(OR(AND(F24=0,G24=0,H24=0,I24=0),F24=Q35),0,IF(AND(G24=Q29,I24=X79,H24=R31),VLOOKUP(H4,O80:Z96,10,0),IF(AND(G24=Q29,I24=Y79,H24=R31),VLOOKUP(H4,O80:Z96,11,0),IF(AND(G24=Q29,I24=Z79,H24=R31),VLOOKUP(H4,O80:Z96,12,0),IF(AND(G24=R29,H24=P79,I24=P78),VLOOKUP(H4,O80:Z96,2,0),IF(AND(G24=R29,H24=Q79,I24=P78),VLOOKUP(H4,O80:Z96,3,0),IF(AND(G24=R29,H24=R79,I24=R78),VLOOKUP(H4,O80:Z96,4,0),IF(AND(G24=R29,H24=S79,I24=R78),VLOOKUP(H4,O80:Z96,5,0),IF(AND(G24=R29,H24=T79,I24=T78),VLOOKUP(H4,O80:Z96,6,0),IF(AND(G24=R29,H24=U79,I24=T78),VLOOKUP(H4,O80:Z96,7,0),IF(AND(G24=R29,H24=V79,I24=V78),VLOOKUP(H4,O80:Z96,8,0),IF(AND(G24=R29,H24=W79,I24=V78),VLOOKUP(H4,O80:Z96,9,0),\"укажите корретные параметры\")))))))))))),\"укажите корретные параметры\")","v":0},{"$f":"IFERROR(K24*J24,\"укажите корретные параметры\")","v":0}]
[]
[null,null,"Наименование ставки",null,null,null,null,null,"Необходимость","Расход газа","Размер ставки (руб)","Расходы (руб)",null,"коммунально-бытовые нужды"]
[null,null,"Стандартизированная тарифная ставки на установку пункта редуцирования газа (Спрг)",null,null,null,null,null,null,null,{"$f":"IFERROR(IF(I27=Q35,0,IF(J27=0,0,VLOOKUP(H4,O99:S114,IF(J27=P98,2,IF(J27=Q98,3,IF(J27=R98,4,IF(J27=S98,5)))),0))),\"укажите корретные параметры\")","v":0},{"$f":"K27","v":0},null,"иные нужды"]
[null,null,"Наименование ставки",null,null,null,null,null,null,"Необходимость","Размер ставки (руб)","Расходы (руб)",null,"26 029,90","(НДС не предусмотрен)"]
[null,null,"Стандартизированная тарифная ставки на установку отключающих устройств (Соу)",null,null,null,null,null,null,null,{"$f":"IFERROR(IF(J29=Q34,Q16,0),\"укажите корретные параметры\")","v":0},{"$f":"IFERROR(K29*H5,\"укажите корретные параметры\")","v":0},null,"55 145,98","(НДС не предусмотрен)",null,"Полиэтиленовый газопровод","Стальной газопровод","Стальные газопроводы внутр","Полиэтиленовые газопроводы внутр","диаметр Сокс сталь"]
[null,null,null,null,null,null,null,null,null,null,null,null,{"$f":"INDIRECT(IF($G$24=$Q$29,SUBSTITUTE($T$29,\" \",\"_\"),(IF($G$24=$R$29,SUBSTITUTE($S$29,\" \",\"_\"),0))))","v":{"$error":"#REF!"}},null,null,null,"подземная прокладка","наземная (надземная) прокладка","25 мм и менее","32 мм и менее","до 10 мм"]
[null,null,"Наименование ставки",null,null,null,null,"Необходимость","Диаметр трубы","Протяженность (км)","Размер ставки (руб/км)","Расходы (руб)",{"$f":"IF(AND(G24=Q29,I24=X79),VLOOKUP(H4,O80:Z96,10,0),IF(AND(G24=Q29,I24=Y79),VLOOKUP(H4,O80:Z96,11,0),IF(AND(G24=Q29,I24=Z79),VLOOKUP(H4,O80:Z96,12,0),IF(AND(G24=R29,H24=P79,I24=P78),VLOOKUP(H4,O80:Z96,2,0),IF(AND(G24=R29,H24=Q79,I24=P78),VLOOKUP(H4,O80:Z96,3,0),IF(AND(G24=R29,H24=R79,I24=R78),VLOOKUP(H4,O80:Z96,4,0),IF(AND(G24=R29,H24=S79,I24=R78),VLOOKUP(H4,O80:Z96,5,0),IF(AND(G24=R29,H24=T79,I24=T78),VLOOKUP(H4,O80:Z96,6,0),IF(AND(G24=R29,H24=U79,I24=T78),VLOOKUP(H4,O80:Z96,7,0),IF(AND(G24=R29,H24=V79,I24=V78),VLOOKUP(H4,O80:Z96,8,0),IF(AND(G24=R29,H24=W79,I24=V78),VLOOKUP(H4,O80:Z96,9,0),\"не правильно заданы параметры\")))))))))))","v":"не правильно заданы параметры"},null,null,null,null,"подземная прокладка","26-38 мм","33-63 мм","11-15 мм"]
[null,null,"Стандартизированная тарифная ставки на устройство внутреннего газопровода объекта капитального строительства Заявителя (Сокс)",null,null,null,null,null,null,null,{"$f":"IFERROR(IF(AND(H32=0,I32=0,J32=0),0,IF(H32=Q35,0,VLOOKUP(H4,O138:T152,IF(I32=P137,2,IF(I32=Q137,3,IF(I32=R137,4,IF(I32=S137,5,IF(I32=T137,6))))),0))),\"укажитекорретные параметры\")","v":0},{"$f":"IFERROR(K32*J32,\"укажитекорретные параметры\")","v":0},null,null,null,null,"Cr_1","Cr_2","39-45 мм","64-90 мм","16-20 мм"]
[null,null,null,null,null,null,null,null,null,null,null,null,null,null,null,null,"подземная прокладка","наземная (надземная) прокладка","46-57 мм",null,"21-25 мм"]
[null,null,"Наименование ставки",null,null,null,null,null,null,"Необходимость","Размер ставки (руб)","Расходы (руб)",null,null,null,null,"да","подземная прокладка",null,null,"26-32 мм"]
[null,null,"Стандартизированная тарифная ставки на установку прибора учета газа (Спу)",null,null,null,null,null,null,null,{"$f":"IF(J35=Q34,S17,0)","v":0},{"$f":"K35","v":0},null,null,null,null,"нет"]
[null,null,null,null,null,null,null,null,null,null,null,null,null,null,null,null,null,{"$f":"INDIRECT(IF(AND(C10=R29,OR(G10=R30,G10=R31)),SUBSTITUTE($S$29,\" \",\"_\"),IF(AND(C10=R29,G10=R32),SUBSTITUTE($T$29,\" \",\"_\"),IF(AND(C10=Q29,G10=Q30),SUBSTITUTE($T$29,\" \",\"_\"),0))))","v":{"$error":"#VALUE!"}}]
[]
[]
[]
[]
[]
[]
[null,null,"Плата за технологическое присоединение (Птп)",null,null,null,null,null,null,null,{"$f":"IFERROR(L22+L24+L27+L29+L32+L35,\"не правильно выбраны параметры\")","v":0},"руб. \n(без учета НДС)",null,{"$f":"IF(AND(H3=N26,H6<=5,#REF!<0.3,#REF!<200,H7=Q35,G10<>Q31,G13<>Q31),N28,IF(AND(H3=N27,H6<=15,#REF!<0.3,#REF!<200,H7=Q35,G10<>Q31,G13<>Q31),N29,IFERROR(SUM(K22:K41),\"не верно выбраны параметры\")))","v":{"$error":"#REF!"}}]
[null,null,"ВНИМАНИЕ! Данные расчеты носят справочный характер и не могут являться окончательными для оплаты стоимости технологического присоединения. Калькулятор расчета платы за технологическое присоединение к сетям газораспределения предназначен для примерного расчета стоимости размера платы за технологическое присоединение к сетям газораспределения газораспределительных организаций Челябинской области",null,null,null,null,null,null,null,null,null,null,null,null,null,"Расход газа"]
[null,null,null,null,null,null,null,null,null,null,null,null,null,null,null,null,"до 10 куб. метров в час"]
[null,null,null,null,null,null,null,null,null,null,null,null,null,null,null,null,"11-20 куб. метров в час"]
[null,null,null,null,null,null,null,null,null,null,null,null,null,null,null,null,"21-31 куб. метров в час"]
[null,null,null,null,null,null,null,null,null,null,null,null,null,null,null,null,"32-49 куб. метров в час"]
[]
[]
[]
[]
[]
[]
[]
[]
[]
[null,null,null,null,null,null,null,null,null,null,null,null,null,null,"Спр","Стандартизированная тарифная ставка на проектирование сети газопотребления"]
[null,null,null,null,null,null,null,null,null,null,null,null,null,1,"АО «Газпром газораспределение Челябинск»",8205.0300000000007]
[null,null,null,null,null,null,null,null,null,null,null,null,null,2,"АО «Челябинскгоргаз» ",8019.1]
[null,null,null,null,null,null,null,null,null,null,null,null,null,3,"ООО «Магнитогорскгазстрой»",7275.35]
[null,null,null,null,null,null,null,null,null,null,null,null,null,4,"ООО «Классик»",7702.26]
[null,null,null,null,null,null,null,null,null,null,null,null,null,5,"АО «Трансэнерго»",7275.35]
[null,null,null,null,null,null,null,null,null,null,null,null,null,6,"ООО «Златоустгазстрой»","ставка не установлена"]
[null,null,null,null,null,null,null,null,null,null,null,null,null,7,"ООО Индустриальный парк «Станкомаш»","ставка не установлена"]
[null,null,null,null,null,null,null,null,null,null,null,null,null,8,"ООО «СтандартЛимит»",7275.35]
[null,null,null,null,null,null,null,null,null,null,null,null,null,9,"МУП «Теплоэнерго»","ставка не установлена"]
[null,null,null,null,null,null,null,null,null,null,null,null,null,10,"МУП «Многоотраслевое производственное объединение энергосетей» г. Трехгорного",7275.35]
[null,null,null,null,null,null,null,null,null,null,null,null,null,11,"ООО «Озерскгаз»",7275.35]
[null,null,null,null,null,null,null,null,null,null,null,null,null,12,"ООО «Маг-Энерго»",7275.35]
[null,null,null,null,null,null,null,null,null,null,null,null,null,13,"ООО \"Партнер-Газ\"",7002.26]
[null,null,null,null,null,null,null,null,null,null,null,null,null,14,"ООО \"Тополь М\"",7002.26]
[null,null,null,null,null,null,null,null,null,null,null,null,null,15,"МУП \"Магнитогорские газовые сети\"",7702.26,null,null,"Полиэтиленовые газопроводы","Стальные газопроводы"]
[]
[]
[null,null,null,null,null,null,null,null,null,null,null,null,null,null,"Сг","Стандартизированные тарифные ставки на строительство газопровода и устройств системы электрохимической защиты от коррозии"]
[null,null,null,null,null,null,null,null,null,null,null,null,null,null,null,"Стальные газопроводы"]
[null,null,null,null,null,null,null,null,null,null,null,null,null,null,null,"25 мм и менее",null,"26-38 мм",null,"39-45 мм",null,"46-57 мм",null,"Полиэтиленовые газопроводы"]
[null,null,null,null,null,null,null,null,null,null,null,null,null,null,null,"наземная (надземная) прокладка","подземная прокладка","наземная (надземная) прокладка","подземная прокладка","наземная (надземная) прокладка","подземная прокладка","наземная (надземная) прокладка","подземная прокладка","32 мм и менее","33-63 мм","64-90 мм"]
[null,null,null,null,null,null,null,null,null,null,null,null,null,1,"АО «Газпром газораспределение Челябинск»",1172461.83,1441616.96,1172461.83,1441616.96,1172461.83,1441616.96,1172461.83,1441616.96,1535122.02,1535122.02,1535122.02]
[null,null,null,null,null,null,null,null,null,null,null,null,null,2,"АО «Челябинскгоргаз» ",1898371.67,2421299.7000000002,1898371.67,2421299.7000000002,1898371.67,2292033.19,1514718.31,2421299.7000000002,2237404.84,3073292.17,2237404.84]
[null,null,null,null,null,null,null,null,null,null,null,null,null,3,"ООО «Магнитогорскгазстрой»",1283523.4099999999,"ставка не установлена",1283523.4099999999,"ставка не установлена","ставка не установлена","ставка не установлена",1283523.4099999999,1971692.7,"ставка не установлена",2001227.16,"ставка не установлена"]
[null,null,null,null,null,null,null,null,null,null,null,null,null,4,"ООО «Классик»","ставка не установлена","ставка не установлена","ставка не установлена","ставка не установлена","ставка не установлена","ставка не установлена",801230.54,"ставка не установлена","ставка не установлена","ставка не установлена",746053.06]
[null,null,null,null,null,null,null,null,null,null,null,null,null,5,"АО «Трансэнерго»",266411.25,"ставка не установлена",546588.71,2015632.43,"ставка не установлена","ставка не установлена","ставка не установлена","ставка не установлена",1835919.64,"ставка не установлена","ставка не установлена"]
[null,null,null,null,null,null,null,null,null,null,null,null,null,6,"ООО «Златоустгазстрой»","ставка не установлена","ставка не установлена","ставка не установлена","ставка не установлена","ставка не установлена","ставка не установлена","ставка не установлена","ставка не установлена","ставка не установлена","ставка не установлена","ставка не установлена"]
[null,null,null,null,null,null,null,null,null,null,null,null,null,7,"ООО Индустриальный парк «Станкомаш»","ставка не установлена","ставка не установлена","ставка не установлена","ставка не установлена","ставка не установлена","ставка не установлена","ставка не установлена","ставка не установлена","ставка не установлена","ставка не установлена","ставка не установлена"]
[null,null,null,null,null,null,null,null,null,null,null,null,null,8,"ООО «СтандартЛимит»",700000,1170000,700000,1170000,"ставка не установлена","ставка не установлена","ставка не установлена","ставка не установлена",520000,"ставка не установлена","ставка не установлена"]
[null,null,null,null,null,null,null,null,null,null,null,null,null,9,"МУП «Теплоэнерго»","ставка не установлена","ставка не установлена","ставка не установлена","ставка не установлена","ставка не установлена","ставка не установлена","ставка не установлена","ставка не установлена","ставка не установлена","ставка не установлена","ставка не установлена"]
[null,null,null,null,null,null,null,null,null,null,null,null,null,10,"МУП «Многоотраслевое производственное объединение энергосетей» г. Трехгорного",700000,1170000,700000,1170000,"ставка не установлена","ставка не установлена","ставка не установлена","ставка не установлена",520000,"ставка не установлена","ставка не установлена"]
[null,null,null,null,null,null,null,null,null,null,null,null,null,11,"ООО «Озерскгаз»",700000,1170000,700000,1170000,"ставка не установлена","ставка не установлена","ставка не установлена","ставка не установлена",520000,"ставка не установлена","ставка не установлена"]
[null,null,null,null,null,null,null,null,null,null,null,null,null,12,"ООО «Маг-Энерго»",700000,1170000,700000,1170000,"ставка не установлена","ставка не установлена","ставка не установлена","ставка не установлена",520000,"ставка не установлена","ставка не установлена"]
[null,null,null,null,null,null,null,null,null,null,null,null,null,13,"ООО \"Партнер-Газ\"",560046,748614,716868.88,958225.92000000004,896073.6,1197782.3999999999,1008082.8,1351598.16,530707,1061414,915490.66]
[null,null,null,null,null,null,null,null,null,null,null,null,null,14,"ООО \"Тополь М\"",560046,748614,716868.88,958225.92000000004,896073.6,1197782.3999999999,1008082.8,1351598.16,530707,1061414,915490.66]
[null,null,null,null,null,null,null,null,null,null,null,null,null,15,"МУП \"Магнитогорские газовые сети\"","ставка не установлена","ставка не установлена","ставка не установлена","ставка не установлена","ставка не установлена","ставка не установлена",801230.54,"ставка не установлена","ставка не установлена","ставка не установлена",746053.06]
[]
[]
[null,null,null,null,null,null,null,null,null,null,null,null,null,null,"Спрг","Стандартизированная тарифная ставка на установку пункта редуцирования газа (с учетом стоимости оборудования)"]
[null,null,null,null,null,null,null,null,null,null,null,null,null,null,null,"до 10 куб. метров в час","11-20 куб. метров в час","21-31 куб. метров в час","32-49 куб. метров в час"]
[null,null,null,null,null,null,null,null,null,null,null,null,null,1,"АО «Газпром газораспределение Челябинск»","ставка не установлена","ставка не установлена","ставка не установлена","ставка не установлена"]
[null,null,null,null,null,null,null,null,null,null,null,null,null,2,"АО «Челябинскгоргаз» ",23631.65,43324.69,82710.78,126035.47]
[null,null,null,null,null,null,null,null,null,null,null,null,null,3,"ООО «Магнитогорскгазстрой»",24197.98,"ставка не установлена","ставка не установлена","ставка не установлена"]
[null,null,null,null,null,null,null,null,null,null,null,null,null,4,"ООО «Классик»",22151.59,"ставка не установлена","ставка не установлена","ставка не установлена"]
[null,null,null,null,null,null,null,null,null,null,null,null,null,5,"АО «Трансэнерго»","ставка не установлена","ставка не установлена","ставка не установлена","ставка не установлена"]
[null,null,null,null,null,null,null,null,null,null,null,null,null,6,"ООО «Златоустгазстрой»","ставка не установлена","ставка не установлена","ставка не установлена","ставка не установлена"]
[null,null,null,null,null,null,null,null,null,null,null,null,null,7,"ООО Индустриальный парк «Станкомаш»","ставка не установлена","ставка не установлена","ставка не установлена","ставка не установлена"]
[null,null,null,null,null,null,null,null,null,null,null,null,null,8,"ООО «СтандартЛимит»",24000,"ставка не установлена","ставка не установлена","ставка не установлена"]
[null,null,null,null,null,null,null,null,null,null,null,null,null,9,"МУП «Теплоэнерго»","ставка не установлена","ставка не установлена","ставка не установлена","ставка не установлена"]
[null,null,null,null,null,null,null,null,null,null,null,null,null,10,"МУП «Многоотраслевое производственное объединение энергосетей» г. Трехгорного",24000,"ставка не установлена","ставка не установлена","ставка не установлена"]
[null,null,null,null,null,null,null,null,null,null,null,null,null,11,"ООО «Озерскгаз»",24000,"ставка не установлена","ставка не установлена","ставка не установлена"]
[null,null,null,null,null,null,null,null,null,null,null,null,null,12,"ООО «Маг-Энерго»",24000,"ставка не установлена","ставка не установлена","ставка не установлена"]
[null,null,null,null,null,null,null,null,null,null,null,null,null,13,"ООО \"Партнер-Газ\"",20770.349999999999,37706.44,71985.03,109691.47]
[null,null,null,null,null,null,null,null,null,null,null,null,null,14,"ООО \"Тополь М\"",20770.349999999999,37706.44,71985.03,109691.47]
[null,null,null,null,null,null,null,null,null,null,null,null,null,15,"МУП \"Магнитогорские газовые сети\"",22151.59,"ставка не установлена","ставка не установлена","ставка не установлена"]
[]
[]
[null,null,null,null,null,null,null,null,null,null,null,null,null,null,"Соу","Стандартизированная тарифная ставка на установку отключающих устройств"]
[null,null,null,null,null,null,null,null,null,null,null,null,null,1,"АО «Газпром газораспределение Челябинск»",1209.52]
[null,null,null,null,null,null,null,null,null,null,null,null,null,2,"АО «Челябинскгоргаз» ",1717.46]
[null,null,null,null,null,null,null,null,null,null,null,null,null,3,"ООО «Магнитогорскгазстрой»",1754.24]
[null,null,null,null,null,null,null,null,null,null,null,null,null,4,"ООО «Классик»",533]
[null,null,null,null,null,null,null,null,null,null,null,null,null,5,"АО «Трансэнерго»",1567.64]
[null,null,null,null,null,null,null,null,null,null,null,null,null,6,"ООО «Златоустгазстрой»","ставка не установлена"]
[null,null,null,null,null,null,null,null,null,null,null,null,null,7,"ООО Индустриальный парк «Станкомаш»","ставка не установлена"]
[null,null,null,null,null,null,null,null,null,null,null,null,null,8,"ООО «СтандартЛимит»",1232.52]
[null,null,null,null,null,null,null,null,null,null,null,null,null,9,"МУП «Теплоэнерго»","ставка не установлена"]
[null,null,null,null,null,null,null,null,null,null,null,null,null,10,"МУП «Многоотраслевое производственное объединение энергосетей» г. Трехгорного",1232.52]
[null,null,null,null,null,null,null,null,null,null,null,null,null,11,"ООО «Озерскгаз»",1232.52]
[null,null,null,null,null,null,null,null,null,null,null,null,null,12,"ООО «Маг-Энерго»",1232.52]
[null,null,null,null,null,null,null,null,null,null,null,null,null,13,"ООО \"Партнер-Газ\"",1163.75]
[null,null,null,null,null,null,null,null,null,null,null,null,null,14,"ООО \"Тополь М\"",1215.43]
[null,null,null,null,null,null,null,null,null,null,null,null,null,15,"МУП \"Магнитогорские газовые сети\"",533]
[]
[]
[]
[null,null,null,null,null,null,null,null,null,null,null,null,null,null,"Сокс","Стандартизированная тарифная ставка на устройство внутреннего газопровода объекта капитального строительства заявителя"]
[null,null,null,null,null,null,null,null,null,null,null,null,null,null,null,"Стальные газопроводы"]
[null,null,null,null,null,null,null,null,null,null,null,null,null,null,null,"до 10 мм","11-15 мм","16-20 мм","21-25 мм","26-32 мм"]
[null,null,null,null,null,null,null,null,null,null,null,null,null,1,"АО «Газпром газораспределение Челябинск»",1099219.53,1179418.31,1179418.31,1179418.31,1179418.31]
[null,null,null,null,null,null,null,null,null,null,null,null,null,2,"АО «Челябинскгоргаз» ",1192637.04,1750982.58,1752983.4,1274824.98,1800583.29]
[null,null,null,null,null,null,null,null,null,null,null,null,null,3,"ООО «Магнитогорскгазстрой»","ставка не установлена",1283523.4099999999,1283523.4099999999,1283523.4099999999,"ставка не установлена"]
[null,null,null,null,null,null,null,null,null,null,null,null,null,4,"ООО «Классик»",682800,682800,682800,682800,682800]
[null,null,null,null,null,null,null,null,null,null,null,null,null,5,"АО «Трансэнерго»","ставка не установлена","ставка не установлена","ставка не установлена",481768.63,843512.43]
[null,null,null,null,null,null,null,null,null,null,null,null,null,6,"ООО «Златоустгазстрой»","ставка не установлена","ставка не установлена","ставка не установлена","ставка не установлена","ставка не установлена"]
[null,null,null,null,null,null,null,null,null,null,null,null,null,7,"ООО Индустриальный парк «Станкомаш»","ставка не установлена","ставка не установлена","ставка не установлена","ставка не установлена","ставка не установлена"]
[null,null,null,null,null,null,null,null,null,null,null,null,null,8,"ООО «СтандартЛимит»",950000,950000,"ставка не установлена","ставка не установлена","ставка не установлена"]
[null,null,null,null,null,null,null,null,null,null,null,null,null,9,"МУП «Теплоэнерго»","ставка не установлена","ставка не установлена","ставка не установлена","ставка не установлена","ставка не установлена"]
[null,null,null,null,null,null,null,null,null,null,null,null,null,10,"МУП «Многоотраслевое производственное объединение энергосетей» г. Трехгорного",950000,950000,"ставка не установлена","ставка не установлена","ставка не установлена"]
[null,null,null,null,null,null,null,null,null,null,null,null,null,11,"ООО «Озерскгаз»",950000,950000,"ставка не установлена","ставка не установлена","ставка не установлена"]
[null,null,null,null,null,null,null,null,null,null,null,null,null,12,"ООО «Маг-Энерго»",950000,950000,"ставка не установлена","ставка не установлена","ставка не установлена"]
[null,null,null,null,null,null,null,null,null,null,null,null,null,13,"ООО \"Партнер-Газ\"",922902.74,922902.74,922902.74,922902.74,922902.74]
[null,null,null,null,null,null,null,null,null,null,null,null,null,14,"ООО \"Тополь М\"",945816.63,946253.38,962070.82,962070.82,954816.63]
[null,null,null,null,null,null,null,null,null,null,null,null,null,15,"МУП \"Магнитогорские газовые сети\"",682800,682800,682800,682800,682800]
[]
[null,null,null,null,null,null,null,null,null,null,null,null,null,null,"Спу","Стандартизированная тарифная ставка на установку прибора учета газа (с учетом стоимости оборудования)"]
[null,null,null,null,null,null,null,null,null,null,null,null,null,1,"АО «Газпром газораспределение Челябинск»",6036.78]
[null,null,null,null,null,null,null,null,null,null,null,null,null,2,"АО «Челябинскгоргаз» ",7133.01]
[null,null,null,null,null,null,null,null,null,null,null,null,null,3,"ООО «Магнитогорскгазстрой»",4487.28]
[null,null,null,null,null,null,null,null,null,null,null,null,null,4,"ООО «Классик»",5549.36]
[null,null,null,null,null,null,null,null,null,null,null,null,null,5,"АО «Трансэнерго»",2419.34]
[null,null,null,null,null,null,null,null,null,null,null,null,null,6,"ООО «Златоустгазстрой»","ставка не установлена"]
[null,null,null,null,null,null,null,null,null,null,null,null,null,7,"ООО Индустриальный парк «Станкомаш»","ставка не установлена"]
[null,null,null,null,null,null,null,null,null,null,null,null,null,8,"ООО «СтандартЛимит»",5464.1]
[null,null,null,null,null,null,null,null,null,null,null,null,null,9,"МУП «Теплоэнерго»","ставка не установлена"]
[null,null,null,null,null,null,null,null,null,null,null,null,null,10,"МУП «Многоотраслевое производственное объединение энергосетей» г. Трехгорного",5464.1]
[null,null,null,null,null,null,null,null,null,null,null,null,null,11,"ООО «Озерскгаз»",5464.1]
[null,null,null,null,null,null,null,null,null,null,null,null,null,12,"ООО «Маг-Энерго»",5464.1]
[null,null,null,null,null,null,null,null,null,null,null,null,null,13,"ООО \"Партнер-Газ\"",5464.1]
[null,null,null,null,null,null,null,null,null,null,null,null,null,14,"ООО \"Тополь М\"",5464.1]
[null,null,null,null,null,null,null,null,null,null,null,null,null,15,"МУП \"Магнитогорские газовые сети\"",5549.36]